BodyName,ServiceAreaCategorisation,ServiceDivisionCategorisation,ExpensesType,Date,TransactionNumber,Amount,CapitalorRevenue,SupplierName
Peterborough City Council,Children's & Education Services - Children's Social Care,Support Services & Management Costs,Supplies and Services,01/12/2011,369674,700,REVENUE,Her Majesty's Court Service
Peterborough City Council,Children's & Education Services - Education,Non-School Funding,Supplies and Services,01/12/2011,414833,10639.2,REVENUE,Continuum Care & Educ. Group.
Peterborough City Council,Children's & Education Services - Children's Social Care,Children Looked After,Supplies and Services - Transfer Payments,01/12/2011,415986,12835.8,REVENUE,Direct Care Limited
Peterborough City Council,Children's & Education Services - Children's Social Care,Children Looked After,Supplies and Services - Transfer Payments,01/12/2011,415987,12835.8,REVENUE,Direct Care Limited
Peterborough City Council,Environmental and Regulatory Services,"Cemetery, Crematorium & Mortuary Services",Supplies and Services,01/12/2011,416574,900,REVENUE,Anglia Co-operative Funerals
Peterborough City Council,Children's & Education Services - Children's Social Care,Children Looked After,Supplies and Services - Transfer Payments,01/12/2011,417299,6417.9,REVENUE,Direct Care Limited
Peterborough City Council,"Highways, Roads & Transport Services",Regulatory services,Supplies and Services,01/12/2011,418199,825,REVENUE,Unity Automotive Peterborough Ltd
Peterborough City Council,Planning Services,Community Development,Supplies and Services,01/12/2011,419672,500,REVENUE,Glinton Friendship Club
Peterborough City Council,Environmental and Regulatory Services,"Cemetery, Crematorium & Mortuary Services",Supplies and Services,01/12/2011,420023,963.36,REVENUE,Anglia Co-operative Funerals
Peterborough City Council,Support Services,Support Services,Supplies and Services,01/12/2011,420158,696,REVENUE,David Briggs Associates Ltd
Peterborough City Council,Support Services,Support Services,Supplies and Services,01/12/2011,420159,567.74,REVENUE,David Briggs Associates Ltd
Peterborough City Council,Children's & Education Services - Education,Secondary,Supplies and Services,02/12/2011,395451,13790.5,REVENUE,NACRO
Peterborough City Council,More than one Service Area Category,More than one Service Division,Supplies and Services,02/12/2011,401341,12732.25,REVENUE,Loomis UK Ltd
Peterborough City Council,Children's & Education Services - Education,Non-School Funding,Supplies and Services,02/12/2011,406961,29243.33,REVENUE,Action For Children
Peterborough City Council,Children's & Education Services - Children's Social Care,Family Support Services,Supplies and Services,02/12/2011,412035,520,REVENUE,Peep Learning Ltd
Peterborough City Council,Children's & Education Services - Children's Social Care,Other Children's & Families Services,Employees,02/12/2011,413080,1470,REVENUE,Blue Group International Ltd
Peterborough City Council,"Highways, Roads & Transport Services","Environmental, Safety & Routine Maintenance",Supplies and Services,02/12/2011,413257,17892,REVENUE,Atkins Limited
Peterborough City Council,More than one Service Area Category,More than one Service Division,More than one Expenses Type,02/12/2011,414583,540,"Mixture of Capital, Revenue and/or Balance Sheet",Roythornes
Peterborough City Council,Children's & Education Services - Children's Social Care,Other Children's & Families Services,Employees,02/12/2011,414587,1554,REVENUE,Blue Group International Ltd
Peterborough City Council,"Highways, Roads & Transport Services",Public Transport,Supplies and Services,02/12/2011,414826,875.06,REVENUE,Veolia Transport UK Ltd
Peterborough City Council,Children's & Education Services - Children's Social Care,Other Children's & Families Services,Employees,02/12/2011,415324,1512,REVENUE,Blue Group International Ltd
Peterborough City Council,"Cultural, Environmental and Planning Services",Waste Collection,Supplies and Services,02/12/2011,415852,783,REVENUE,Viridor Waste Kent Ltd
Peterborough City Council,Cultural and Related Services,Recreation & Sport,Premises,02/12/2011,417389,-639.4,REVENUE,Viridor Waste Kent Ltd
Peterborough City Council,Children's & Education Services - Children's Social Care,Other Children's & Families Services,Employees,02/12/2011,418015,1302,REVENUE,Blue Group International Ltd
Peterborough City Council,Children's & Education Services - Education,Non-School Funding,Supplies and Services,02/12/2011,418377,13219.1,REVENUE,Pakistan Comm Ass of PBoro Pre- School
Peterborough City Council,Deficit/(Surplus) on Trading Undertakings,Trading Account Surpluses & Deficits,Premises,02/12/2011,418571,-513.76,REVENUE,Viridor Waste Kent Ltd
Peterborough City Council,Capital,Capital,Capital Pending Update to BS,02/12/2011,418606,18000,CAPITAL,L Garfield (Builders) Ltd
Peterborough City Council,Children's & Education Services - Education,Secondary,Employees,02/12/2011,418882,792,REVENUE,Mana Resourcing Ltd
Peterborough City Council,Children's & Education Services - Education,Secondary,Employees,02/12/2011,418910,7512.84,REVENUE,Mana Resourcing Ltd
Peterborough City Council,Children's & Education Services - Education,Secondary,Employees,02/12/2011,418911,1110,REVENUE,Mana Resourcing Ltd
Peterborough City Council,Support Services,Support Services,Supplies and Services,02/12/2011,419811,-734.06,REVENUE,Loomis UK Ltd
Peterborough City Council,Capital,Capital,Capital Pending Update to BS,02/12/2011,419812,7123.2,CAPITAL,E.ON Energy
Peterborough City Council,Children's & Education Services - Children's Social Care,Children Looked After,Supplies and Services - Transfer Payments,02/12/2011,419995,3260.89,REVENUE,Alliance Foster Care
Peterborough City Council,"Highways, Roads & Transport Services","Transport planning, policy and strategy",Supplies and Services,02/12/2011,420271,1850,REVENUE,Home Group Ltd
Peterborough City Council,"Highways, Roads & Transport Services",Public Transport,Supplies and Services,02/12/2011,420561,963.5,REVENUE,Centrebus North Ltd
Peterborough City Council,Environmental and Regulatory Services,Waste Collection,Premises,02/12/2011,420598,2407.12,REVENUE,Viridor Waste Kent Ltd
Peterborough City Council,Environmental and Regulatory Services,Waste Collection,Premises,02/12/2011,420619,1186.56,REVENUE,Viridor Waste Kent Ltd
Peterborough City Council,Environmental and Regulatory Services,Waste Collection,Premises,02/12/2011,420678,722.14,REVENUE,Viridor Waste Kent Ltd
Peterborough City Council,Environmental and Regulatory Services,Waste Collection,Premises,02/12/2011,420742,962.84,REVENUE,Viridor Waste Kent Ltd
Peterborough City Council,Environmental and Regulatory Services,Waste Collection,Premises,02/12/2011,420756,722.14,REVENUE,Viridor Waste Kent Ltd
Peterborough City Council,Environmental and Regulatory Services,Waste Collection,Premises,02/12/2011,420760,1444.27,REVENUE,Viridor Waste Kent Ltd
Peterborough City Council,Environmental and Regulatory Services,Waste Collection,Premises,02/12/2011,420784,15164.8,REVENUE,Viridor Waste Kent Ltd
Peterborough City Council,Environmental and Regulatory Services,Waste Collection,Premises,02/12/2011,420785,4072.55,REVENUE,Viridor Waste Kent Ltd
Peterborough City Council,Environmental and Regulatory Services,Waste Collection,Premises,02/12/2011,420786,4746.24,REVENUE,Viridor Waste Kent Ltd
Peterborough City Council,Environmental and Regulatory Services,Waste Collection,Premises,02/12/2011,420788,1186.56,REVENUE,Viridor Waste Kent Ltd
Peterborough City Council,Environmental and Regulatory Services,Waste Collection,Premises,02/12/2011,420842,4814.22,REVENUE,Viridor Waste Kent Ltd
Peterborough City Council,Environmental and Regulatory Services,Waste Collection,Premises,02/12/2011,420843,1582.08,REVENUE,Viridor Waste Kent Ltd
Peterborough City Council,"Highways, Roads & Transport Services",Public Transport,Supplies and Services,02/12/2011,420869,1675.65,REVENUE,Statutory Payment of Concessionary Fares to Bus Provider
Peterborough City Council,Planning Services,Community Development,Supplies and Services,02/12/2011,420872,500,REVENUE,Eye Parish Council
Peterborough City Council,Planning Services,Community Development,Supplies and Services,02/12/2011,420873,600,REVENUE,St Marys Court Residents Assoc
Peterborough City Council,Planning Services,Community Development,Supplies and Services,02/12/2011,420874,500,REVENUE,Eye Parish Council
Peterborough City Council,Planning Services,Community Development,Supplies and Services,02/12/2011,420875,500,REVENUE,Eye Parish Council
Peterborough City Council,Support Services,Support Services,Premises,02/12/2011,420882,5627.03,REVENUE,Southern Electric
Peterborough City Council,Children's & Education Services - Education,Secondary,Supplies and Services,02/12/2011,420883,675,REVENUE,Redacted Personal Data
Peterborough City Council,Children's & Education Services - Children's Social Care,Service Strategy,Supplies and Services,02/12/2011,420887,1750,REVENUE,Redacted Personal Data
Peterborough City Council,Planning Services,Community Development,Supplies and Services,02/12/2011,420888,1000,REVENUE,Wittering Academy Riding Club
Peterborough City Council,Planning Services,Community Development,Supplies and Services,02/12/2011,420901,500,REVENUE,Eye Parish Council
Peterborough City Council,Children's & Education Services - Children's Social Care,More than one Service Division,More than one Expenses Type,02/12/2011,420926,1107.23,REVENUE,Children & Families Looked After Children
Peterborough City Council,More than one Service Area Category,More than one Service Division,More than one Expenses Type,02/12/2011,420931,12559.66,"Mixture of Capital, Revenue and/or Balance Sheet",Burmor Construction
Peterborough City Council,Children's & Education Services - Education,Non-School Funding,Employees,02/12/2011,420936,954,REVENUE,Mana Resourcing Ltd
Peterborough City Council,More than one Service Area Category,More than one Service Division,More than one Expenses Type,02/12/2011,420943,5973.6,"Mixture of Capital, Revenue and/or Balance Sheet",Allworks Home Improvements Ltd
Peterborough City Council,More than one Service Area Category,More than one Service Division,Balance Sheet,02/12/2011,420946,2157,Balance Sheet,Dept for Work & Pensions
Peterborough City Council,Children's & Education Services - Children's Social Care,Children Looked After,Supplies and Services,02/12/2011,420968,660,REVENUE,TSL Education Ltd
Peterborough City Council,Support Services,Support Services,Premises,02/12/2011,420984,705.19,REVENUE,Anglian Water
Peterborough City Council,More than one Service Area Category,More than one Service Division,Supplies and Services,02/12/2011,420986,23895,REVENUE,Peterborough City Council
Peterborough City Council,More than one Service Area Category,More than one Service Division,More than one Expenses Type,02/12/2011,420991,1739,"Mixture of Capital, Revenue and/or Balance Sheet",EMS Stairlifts
Peterborough City Council,More than one Service Area Category,More than one Service Division,More than one Expenses Type,02/12/2011,420994,5710,"Mixture of Capital, Revenue and/or Balance Sheet",Burmor Construction
Peterborough City Council,More than one Service Area Category,More than one Service Division,More than one Expenses Type,02/12/2011,421018,2476.18,REVENUE,Peterborough City Council
Peterborough City Council,"Cultural, Environmental and Planning Services",Street Cleansing,Supplies and Services,02/12/2011,421024,13134.28,REVENUE,J C Decaux UK
Peterborough City Council,Children's & Education Services - Children's Social Care,Family Support Services,More than one Expenses Type,02/12/2011,421059,971.82,REVENUE,Cherry Lodge
Peterborough City Council,Children's & Education Services - Education,Non-School Funding,Employees,02/12/2011,421074,24674.68,REVENUE,Teachers Pensions
Peterborough City Council,More than one Service Area Category,More than one Service Division,Balance Sheet,02/12/2011,421075,5661.51,Balance Sheet,The Prudential Assurance Company Ltd
Peterborough City Council,More than one Service Area Category,More than one Service Division,Balance Sheet,02/12/2011,421076,6816.24,Balance Sheet,Teachers Pensions
Peterborough City Council,Deficit/(Surplus) on Trading Undertakings,Trading Account Surpluses & Deficits,Supplies and Services,05/12/2011,376926,2782.44,REVENUE,Cambridgeshire County Council
Peterborough City Council,Children's & Education Services - Children's Social Care,Family Support Services,Employees,05/12/2011,413473,1679.2,REVENUE,Movement 2
Peterborough City Council,Children's & Education Services - Children's Social Care,Children Looked After,Supplies and Services - Transfer Payments,05/12/2011,413690,17000,REVENUE,Young Options College Ltd
Peterborough City Council,Children's & Education Services - Children's Social Care,Family Support Services,Supplies and Services,05/12/2011,415328,2550,REVENUE,Independent Health Care Services
Peterborough City Council,Children's & Education Services - Children's Social Care,Family Support Services,Supplies and Services,05/12/2011,415719,8375,REVENUE,Cambs & P'boro NHS Foundation Trust
Peterborough City Council,Children's & Education Services - Children's Social Care,Children Looked After,Supplies and Services - Transfer Payments,05/12/2011,415765,17000,REVENUE,Young Options College Ltd
Peterborough City Council,Children's & Education Services - Children's Social Care,Children Looked After,Employees,05/12/2011,416600,1074,REVENUE,Redacted Personal Data
Peterborough City Council,Children's & Education Services - Children's Social Care,Children Looked After,Employees,05/12/2011,416602,676.2,REVENUE,Redacted Personal Data
Peterborough City Council,Children's & Education Services - Children's Social Care,Children Looked After,Employees,05/12/2011,416603,844.6,REVENUE,Redacted Personal Data
Peterborough City Council,Children's & Education Services - Children's Social Care,Children Looked After,Employees,05/12/2011,416604,601.8,REVENUE,Redacted Personal Data
Peterborough City Council,Children's & Education Services - Children's Social Care,Other Children's & Families Services,Employees,05/12/2011,417054,1609.5,REVENUE,Care Recruitment UK Ltd
Peterborough City Council,Housing Services,Private Sector Housing Renewal,Supplies and Services,05/12/2011,417086,862.75,REVENUE,B S Builders & Carpenters
Peterborough City Council,Corporate & Democratic Core,Corporate Management,Transport,05/12/2011,417238,840,REVENUE,Smooth Operators (Peterborough) Ltd
Peterborough City Council,Environmental and Regulatory Services,Waste Collection,Supplies and Services,05/12/2011,417292,37098.49,REVENUE,Organic Recycling Ltd
Peterborough City Council,"Highways, Roads & Transport Services","Environmental, Safety & Routine Maintenance",Supplies and Services,05/12/2011,417399,1054.27,REVENUE,Telent Technology Services Ltd
Peterborough City Council,"Highways, Roads & Transport Services","Environmental, Safety & Routine Maintenance",Supplies and Services,05/12/2011,417400,759.58,REVENUE,Telent Technology Services Ltd
Peterborough City Council,Children's & Education Services - Children's Social Care,Other Children's & Families Services,Employees,05/12/2011,417434,1323,REVENUE,Blue Group International Ltd
Peterborough City Council,Children's & Education Services - Children's Social Care,Children Looked After,Supplies and Services - Transfer Payments,05/12/2011,417755,2600,REVENUE,Nene Valley Fostering Agency
Peterborough City Council,Children's & Education Services - Children's Social Care,Children Looked After,Supplies and Services - Transfer Payments,05/12/2011,417767,2677.14,REVENUE,Nene Valley Fostering Agency
Peterborough City Council,Children's & Education Services - Education,Secondary,Employees,05/12/2011,417814,1089.58,REVENUE,IIC by Education (P'boro) Ltd
Peterborough City Council,Children's & Education Services - Education,Secondary,Supplies and Services,05/12/2011,417816,19718.5,REVENUE,IIC by Education (P'boro) Ltd
Peterborough City Council,Capital,Capital,Capital Pending Update to BS,05/12/2011,417854,16889.22,CAPITAL,Richard Rogers Conservation Ltd
Peterborough City Council,"Highways, Roads & Transport Services",Street Lighting,Supplies and Services,05/12/2011,417861,2579.41,REVENUE,Volker Highways MEWS Ltd
Peterborough City Council,"Highways, Roads & Transport Services",Street Lighting,Supplies and Services,05/12/2011,417863,2579.41,REVENUE,Volker Highways MEWS Ltd
Peterborough City Council,"Highways, Roads & Transport Services",Street Lighting,Supplies and Services,05/12/2011,417907,22234.61,REVENUE,Volker Highways MEWS Ltd
Peterborough City Council,Deficit/(Surplus) on Trading Undertakings,Trading Account Surpluses & Deficits,Supplies and Services,05/12/2011,417922,856.8,REVENUE,Godric Engineering Ltd
Peterborough City Council,Environmental and Regulatory Services,Environmental Initiatives,Supplies and Services,05/12/2011,417927,1605.65,REVENUE,Ecofreak
Peterborough City Council,Children's & Education Services - Children's Social Care,Other Children's & Families Services,Employees,05/12/2011,417954,1658.78,REVENUE,Blue Group International Ltd
Peterborough City Council,Children's & Education Services - Children's Social Care,Other Children's & Families Services,Employees,05/12/2011,418017,1600.8,REVENUE,Medicare First
Peterborough City Council,Children's & Education Services - Children's Social Care,Other Children's & Families Services,Employees,05/12/2011,418021,1630.2,REVENUE,Medicare First
Peterborough City Council,Children's & Education Services - Children's Social Care,Other Children's & Families Services,Employees,05/12/2011,418025,1687.2,REVENUE,Medicare First
Peterborough City Council,Environmental and Regulatory Services,"Cemetery, Crematorium & Mortuary Services",Supplies and Services,05/12/2011,418031,918.13,REVENUE,Scribes Ltd
Peterborough City Council,Children's & Education Services - Children's Social Care,Children Looked After,Supplies and Services,05/12/2011,418080,822.36,REVENUE,Excell Network Solutions Ltd
Peterborough City Council,Children's & Education Services - Children's Social Care,Support Services & Management Costs,Employees,05/12/2011,418100,556.8,REVENUE,Redacted Personal Data
Peterborough City Council,"Highways, Roads & Transport Services","Environmental, Safety & Routine Maintenance",Supplies and Services,05/12/2011,418228,702,REVENUE,Clearview Traffic Group Ltd
Peterborough City Council,Capital,Capital,Capital Pending Update to BS,05/12/2011,418480,2591.46,CAPITAL,Servaccomm Redhall Ltd
Peterborough City Council,Capital,Capital,Capital Pending Update to BS,05/12/2011,418548,335331.6,CAPITAL,Murray & Willis Ltd
Peterborough City Council,Support Services,Support Services,Supplies and Services,05/12/2011,418719,3097.78,REVENUE,British Telecom PLC
Peterborough City Council,Adult Social Care,Adult Social Care,Supplies and Services,05/12/2011,418753,390585.25,REVENUE,Peterborough Provider Services
Peterborough City Council,Children's & Education Services - Children's Social Care,Children Looked After,Supplies and Services,05/12/2011,419118,7680,REVENUE,On Track Education Services Ltd
Peterborough City Council,Children's & Education Services - Education,Non-School Funding,Supplies and Services,05/12/2011,419119,7680,REVENUE,On Track Education Services Ltd
Peterborough City Council,More than one Service Area Category,More than one Service Division,Supplies and Services,05/12/2011,419122,7680,REVENUE,On Track Education Services Ltd
Peterborough City Council,More than one Service Area Category,More than one Service Division,Supplies and Services,05/12/2011,419125,7680,REVENUE,On Track Education Services Ltd
Peterborough City Council,Capital,Capital,Capital Pending Update to BS,05/12/2011,419176,554.16,CAPITAL,Ringway Infrastructure Services
Peterborough City Council,Capital,Capital,Capital Pending Update to BS,05/12/2011,419179,1165,CAPITAL,Ringway Infrastructure Services
Peterborough City Council,Capital,Capital,Capital Pending Update to BS,05/12/2011,419890,5976.23,CAPITAL,Ringway Infrastructure Services
Peterborough City Council,More than one Service Area Category,More than one Service Division,More than one Expenses Type,05/12/2011,419905,200071.97,"Mixture of Capital, Revenue and/or Balance Sheet",Ringway Infrastructure Services
Peterborough City Council,Support Services,Support Services,Supplies and Services,05/12/2011,419927,1587,REVENUE,DSM (GB) Ltd
Peterborough City Council,Environmental and Regulatory Services,Waste Collection,Supplies and Services,05/12/2011,419987,38044.91,REVENUE,Organic Recycling Ltd
Peterborough City Council,Support Services,Support Services,Supplies and Services,05/12/2011,420020,2507.75,REVENUE,Don Latham Associates
Peterborough City Council,Children's & Education Services - Children's Social Care,Other Children's & Families Services,Supplies and Services,05/12/2011,420212,506,REVENUE,Redacted Personal Data
Peterborough City Council,Capital,Capital,Capital Pending Update to BS,05/12/2011,420269,46846.06,CAPITAL,McFletch Ltd
Peterborough City Council,Deficit/(Surplus) on Trading Undertakings,Trading Account Surpluses & Deficits,Supplies and Services,05/12/2011,420560,752.4,REVENUE,Barron Clark Castings Ltd
Peterborough City Council,Environmental and Regulatory Services,"Cemetery, Crematorium & Mortuary Services",Supplies and Services,05/12/2011,420904,699,REVENUE,Redacted Personal Data
Peterborough City Council,More than one Service Area Category,More than one Service Division,Balance Sheet,05/12/2011,420945,566,Balance Sheet,Dept for Work & Pensions
Peterborough City Council,Deficit/(Surplus) on Trading Undertakings,Trading Account Surpluses & Deficits,Supplies and Services,05/12/2011,421021,1764.9,REVENUE,Barron Clark Castings Ltd
Peterborough City Council,Deficit/(Surplus) on Trading Undertakings,Trading Account Surpluses & Deficits,Supplies and Services,05/12/2011,421023,2197.5,REVENUE,Barron Clark Castings Ltd
Peterborough City Council,More than one Service Area Category,More than one Service Division,Balance Sheet,05/12/2011,421077,6847.66,Balance Sheet,The Prudential Assurance Company Ltd
Peterborough City Council,More than one Service Area Category,More than one Service Division,Balance Sheet,05/12/2011,421078,773409.46,Balance Sheet,Teachers Pensions
Peterborough City Council,Support Services,Support Services,Premises,05/12/2011,421083,8647.62,REVENUE,Anglian Water
Peterborough City Council,Children's & Education Services - Education,Non-School Funding,Supplies and Services,05/12/2011,421104,1067.16,REVENUE,Bretton Community Pre-School
Peterborough City Council,Children's & Education Services - Education,Non-School Funding,Supplies and Services,05/12/2011,421120,1380.24,REVENUE,Herlington Pre-School
Peterborough City Council,Children's & Education Services - Education,Non-School Funding,Transport,05/12/2011,421299,842.5,REVENUE,Aardvark Coaches
Peterborough City Council,Children's & Education Services - Education,Non-School Funding,Transport,05/12/2011,421300,722.5,REVENUE,Aardvark Coaches
Peterborough City Council,Children's & Education Services - Education,Non-School Funding,Transport,05/12/2011,421301,730,REVENUE,Aardvark Coaches
Peterborough City Council,Children's & Education Services - Education,Non-School Funding,Transport,05/12/2011,421302,822.5,REVENUE,Aardvark Coaches
Peterborough City Council,Children's & Education Services - Education,Non-School Funding,Transport,05/12/2011,421303,865,REVENUE,Aardvark Coaches
Peterborough City Council,Children's & Education Services - Education,Non-School Funding,Transport,05/12/2011,421304,1486.92,REVENUE,Peterborough Cars
Peterborough City Council,Children's & Education Services - Education,Non-School Funding,Transport,05/12/2011,421305,1124.76,REVENUE,Goldstar Cabs Ltd
Peterborough City Council,Children's & Education Services - Education,Non-School Funding,Transport,05/12/2011,421306,930,REVENUE,Goldstar Cabs Ltd
Peterborough City Council,Children's & Education Services - Education,Non-School Funding,Transport,05/12/2011,421307,546,REVENUE,Goldstar Cabs Ltd
Peterborough City Council,More than one Service Area Category,More than one Service Division,Transport,05/12/2011,421308,1512,REVENUE,Goldstar Cabs Ltd
Peterborough City Council,Children's & Education Services - Education,Non-School Funding,Transport,05/12/2011,421309,899.4,REVENUE,Goldstar Cabs Ltd
Peterborough City Council,Children's & Education Services - Education,Non-School Funding,Transport,05/12/2011,421317,1372.8,REVENUE,Redacted Personal Data
Peterborough City Council,Children's & Education Services - Education,Secondary,Premises,05/12/2011,421374,2999.49,REVENUE,Anglian Water
Peterborough City Council,Housing Services,Homelessness,Supplies and Services,05/12/2011,421420,525,REVENUE,Sharman Quinney
Peterborough City Council,Children's & Education Services - Children's Social Care,Support Services & Management Costs,Supplies and Services,05/12/2011,421449,13590,REVENUE,"King, Miss Fawzia"
Peterborough City Council,Children's & Education Services - Education,Non-School Funding,Supplies and Services,07/12/2011,396930,55102.95,REVENUE,Seashell Trust Royal School Mcr
Peterborough City Council,Capital,Capital,Capital Pending Update to BS,07/12/2011,402872,529.19,CAPITAL,Johnston Press Midlands Division
Peterborough City Council,More than one Service Area Category,More than one Service Division,More than one Expenses Type,07/12/2011,406856,1752.21,REVENUE,Peterborough City Council
Peterborough City Council,Housing Services,Housing Benefits,Employees,07/12/2011,407413,1039.39,REVENUE,The Synergy Group
Peterborough City Council,Capital,Capital,Capital Pending Update to BS,07/12/2011,407485,3975.44,CAPITAL,Atkins Limited
Peterborough City Council,Housing Services,Housing Benefits,Employees,07/12/2011,407578,960,REVENUE,The Synergy Group
Peterborough City Council,More than one Service Area Category,More than one Service Division,More than one Expenses Type,07/12/2011,408843,6432,"Mixture of Capital, Revenue and/or Balance Sheet",Warics Ltd
Peterborough City Council,Children's & Education Services - Children's Social Care,Other Children's & Families Services,Employees,07/12/2011,410202,1609.5,REVENUE,Care Recruitment UK Ltd
Peterborough City Council,Children's & Education Services - Children's Social Care,Support Services & Management Costs,Employees,07/12/2011,410900,1570.46,REVENUE,Randstad Care Ltd
Peterborough City Council,Capital,Capital,Capital Pending Update to BS,07/12/2011,413218,4298.2,CAPITAL,Atkins Limited
Peterborough City Council,Children's & Education Services - Children's Social Care,Other Children's & Families Services,Employees,07/12/2011,413249,1754.4,REVENUE,Sanctuary Personnel Ltd
Peterborough City Council,Capital,Capital,Capital Pending Update to BS,07/12/2011,413263,7573.93,CAPITAL,Atkins Limited
Peterborough City Council,Children's & Education Services - Education,Secondary,Supplies and Services,07/12/2011,413311,4000,REVENUE,Peterborough Regional College
Peterborough City Council,More than one Service Area Category,More than one Service Division,More than one Expenses Type,07/12/2011,413365,3700,"Mixture of Capital, Revenue and/or Balance Sheet",Ransome Engineering Services Ltd
Peterborough City Council,Children's & Education Services - Children's Social Care,Other Children's & Families Services,Employees,07/12/2011,413448,1780.2,REVENUE,Randstad Care Ltd
Peterborough City Council,Children's & Education Services - Children's Social Care,Other Children's & Families Services,Employees,07/12/2011,414030,1922.62,REVENUE,Randstad Care Ltd
Peterborough City Council,Planning Services,Economic Development,Supplies and Services,07/12/2011,414545,3093.95,REVENUE,Vivacity Culture and Leisure
Peterborough City Council,Children's & Education Services - Children's Social Care,Other Children's & Families Services,Employees,07/12/2011,415101,1946.35,REVENUE,Randstad Care Ltd
Peterborough City Council,More than one Service Area Category,More than one Service Division,More than one Expenses Type,07/12/2011,417578,4268,"Mixture of Capital, Revenue and/or Balance Sheet",Warics Ltd
Peterborough City Council,Housing Services,Housing Benefits,Employees,07/12/2011,417815,1212.62,REVENUE,The Synergy Group
Peterborough City Council,Housing Services,Housing Benefits,Employees,07/12/2011,417818,1270.37,REVENUE,The Synergy Group
Peterborough City Council,Housing Services,Housing Benefits,Employees,07/12/2011,417821,967.5,REVENUE,The Synergy Group
Peterborough City Council,Children's & Education Services - Education,Non-School Funding,Supplies and Services,07/12/2011,417915,1536,REVENUE,Top Class Tutors
Peterborough City Council,Children's & Education Services - Education,Non-School Funding,Supplies and Services,07/12/2011,417917,1560,REVENUE,Top Class Tutors
Peterborough City Council,Children's & Education Services - Education,Non-School Funding,Supplies and Services,07/12/2011,417918,1536,REVENUE,Top Class Tutors
Peterborough City Council,Children's & Education Services - Education,Non-School Funding,Supplies and Services,07/12/2011,417921,600,REVENUE,Top Class Tutors
Peterborough City Council,Children's & Education Services - Education,Non-School Funding,Supplies and Services,07/12/2011,417923,1536,REVENUE,Top Class Tutors
Peterborough City Council,Children's & Education Services - Education,Secondary,Employees,07/12/2011,417947,7404,REVENUE,Mana Resourcing Ltd
Peterborough City Council,Children's & Education Services - Education,Non-School Funding,Employees,07/12/2011,417974,600,REVENUE,Top Class Tutors
Peterborough City Council,Children's & Education Services - Children's Social Care,Children Looked After,Employees,07/12/2011,417993,1343.1,REVENUE,Frontline Staffing Ltd
Peterborough City Council,Children's & Education Services - Education,Non-School Funding,Employees,07/12/2011,417999,4415.4,REVENUE,Top Class Tutors
Peterborough City Council,Capital,Capital,Capital Pending Update to BS,07/12/2011,418032,9519.6,CAPITAL,L Garfield (Builders) Ltd
Peterborough City Council,Support Services,Support Services,Employees,07/12/2011,418036,1326.67,REVENUE,Venn Group Ltd
Peterborough City Council,Support Services,Support Services,Employees,07/12/2011,418041,1501.04,REVENUE,Venn Group Ltd
Peterborough City Council,Support Services,Support Services,Supplies and Services,07/12/2011,418042,7200,REVENUE,TMI Systems Ltd
Peterborough City Council,"Highways, Roads & Transport Services",Highways/road (structural),Supplies and Services,07/12/2011,418096,657.02,REVENUE,Ringway Infrastructure Services
Peterborough City Council,Children's & Education Services - Children's Social Care,Other Children's & Families Services,Employees,07/12/2011,418204,961.31,REVENUE,Randstad Care Ltd
Peterborough City Council,Children's & Education Services - Children's Social Care,Children Looked After,Supplies and Services - Transfer Payments,07/12/2011,418223,11200,REVENUE,Amegreen
Peterborough City Council,Environmental and Regulatory Services,Regulatory services,Supplies and Services,07/12/2011,418229,7089,REVENUE,Campbell Associates Ltd
Peterborough City Council,"Highways, Roads & Transport Services",Public Transport,Supplies and Services,07/12/2011,418279,52000,REVENUE,Cambridgeshire County Council
Peterborough City Council,Children's & Education Services - Children's Social Care,Other Children's & Families Services,Employees,07/12/2011,418287,1154.26,REVENUE,Randstad Care Ltd
Peterborough City Council,Children's & Education Services - Children's Social Care,Support Services & Management Costs,Employees,07/12/2011,418289,1529.14,REVENUE,Randstad Care Ltd
Peterborough City Council,Children's & Education Services - Children's Social Care,Other Children's & Families Services,Employees,07/12/2011,418292,2854.94,REVENUE,Randstad Care Ltd
Peterborough City Council,Children's & Education Services - Children's Social Care,Children Looked After,Employees,07/12/2011,418295,621.28,REVENUE,Randstad Care Ltd
Peterborough City Council,Capital,Capital,Capital Pending Update to BS,07/12/2011,418301,58035.58,CAPITAL,Prescient Power Ltd
Peterborough City Council,Support Services,Support Services,Supplies and Services,07/12/2011,418302,666,REVENUE,Key People Ltd
Peterborough City Council,Deficit/(Surplus) on Trading Undertakings,Trading Account Surpluses & Deficits,Supplies and Services,07/12/2011,418304,1800,REVENUE,Wilks Head & Eve
Peterborough City Council,Children's & Education Services - Children's Social Care,Children Looked After,Employees,07/12/2011,418321,818.89,REVENUE,Advantage Healthcare Nursing & Care Ltd
Peterborough City Council,Planning Services,Community Development,Supplies and Services,07/12/2011,418325,3684,REVENUE,CML Decorators Ltd
Peterborough City Council,Children's & Education Services - Children's Social Care,Family Support Services,Third Party Payments,07/12/2011,418454,2000,REVENUE,Eastern Leadership Centre
Peterborough City Council,Deficit/(Surplus) on Trading Undertakings,Trading Account Surpluses & Deficits,Supplies and Services,07/12/2011,418459,1800,REVENUE,Qimtek Ltd
Peterborough City Council,Central Services to the Public,Local Tax,Supplies and Services,07/12/2011,418460,2720.44,REVENUE,Capita Business Services Ltd
Peterborough City Council,Children's & Education Services - Children's Social Care,Children Looked After,Supplies and Services - Transfer Payments,07/12/2011,418485,648.95,REVENUE,Argos Business Solutions
Peterborough City Council,"Highways, Roads & Transport Services",Public Transport,Employees,07/12/2011,418517,1568,REVENUE,Redacted Personal Data
Peterborough City Council,Planning Services,Development Control,Supplies and Services,07/12/2011,418520,793.79,REVENUE,Johnston Press Midlands Division
Peterborough City Council,Children's & Education Services - Children's Social Care,Other Children's & Families Services,More than one Expenses Type,07/12/2011,418525,3273,REVENUE,Kingsgate Trading Ltd
Peterborough City Council,Capital,Capital,Capital Pending Update to BS,07/12/2011,418528,5416.5,CAPITAL,L Garfield (Builders) Ltd
Peterborough City Council,Children's & Education Services - Education,Primary,Employees,07/12/2011,418530,6450,REVENUE,Edge Hill University
Peterborough City Council,Children's & Education Services - Education,Primary,Employees,07/12/2011,418533,7750,REVENUE,Edge Hill University
Peterborough City Council,Children's & Education Services - Children's Social Care,Support Services & Management Costs,Employees,07/12/2011,418546,1614.06,REVENUE,Service Care Solutions Ltd
Peterborough City Council,Capital,Capital,Capital Pending Update to BS,07/12/2011,418632,60901.13,CAPITAL,Realm Projects Limited
Peterborough City Council,Capital,Capital,Capital Pending Update to BS,07/12/2011,418633,81906.76,CAPITAL,Realm Projects Limited
Peterborough City Council,Central Services to the Public,Local Tax,Employees,07/12/2011,418686,1201.98,REVENUE,The Synergy Group
Peterborough City Council,Central Services to the Public,Local Tax,Employees,07/12/2011,418688,1304.64,REVENUE,The Synergy Group
Peterborough City Council,Deficit/(Surplus) on Trading Undertakings,Trading Account Surpluses & Deficits,Supplies and Services,07/12/2011,418729,4913.47,REVENUE,Godric Engineering Ltd
Peterborough City Council,Environmental and Regulatory Services,Waste Disposal,Supplies and Services,07/12/2011,419054,16292.5,REVENUE,Environment Agency
Peterborough City Council,"Highways, Roads & Transport Services",Public Transport,Premises,07/12/2011,419058,6000,REVENUE,Jones Lang LaSalle
Peterborough City Council,Children's & Education Services - Children's Social Care,Other Children's & Families Services,Employees,07/12/2011,419073,1764,REVENUE,Sellick Partnership Group Limited
Peterborough City Council,Children's & Education Services - Children's Social Care,Other Children's & Families Services,Employees,07/12/2011,419075,1386,REVENUE,Sellick Partnership Group Limited
Peterborough City Council,Planning Services,Economic Development,Supplies and Services,07/12/2011,419106,1604.94,REVENUE,Bidwells
Peterborough City Council,Children's & Education Services - Children's Social Care,Children Looked After,Employees,07/12/2011,419108,723.6,REVENUE,Textbook Teachers
Peterborough City Council,More than one Service Area Category,More than one Service Division,Balance Sheet,07/12/2011,419126,20812.8,Balance Sheet,Peterborough Provider Services
Peterborough City Council,Children's & Education Services - Children's Social Care,Other Children's & Families Services,Employees,07/12/2011,419614,1752.6,REVENUE,Sanctuary Personnel Ltd
Peterborough City Council,Children's & Education Services - Education,Non-School Funding,Supplies and Services,07/12/2011,419705,17253,REVENUE,Park House School
Peterborough City Council,Children's & Education Services - Education,Non-School Funding,Supplies and Services,07/12/2011,419706,22834,REVENUE,Park House School
Peterborough City Council,Children's & Education Services - Education,Non-School Funding,Supplies and Services,07/12/2011,419707,18239,REVENUE,Park House School
Peterborough City Council,More than one Service Area Category,More than one Service Division,Supplies and Services,07/12/2011,419751,510.88,REVENUE,TNT Post Midlands Ltd
Peterborough City Council,Capital,Capital,Capital Pending Update to BS,07/12/2011,419754,8122.8,CAPITAL,UK Power Networks (operations) Ltd
Peterborough City Council,More than one Service Area Category,More than one Service Division,Supplies and Services,07/12/2011,419755,1391.19,REVENUE,TNT Post Midlands Ltd
Peterborough City Council,Capital,Capital,Capital Pending Update to BS,07/12/2011,419757,8899.2,CAPITAL,UK Power Networks (operations) Ltd
Peterborough City Council,Children's & Education Services - Children's Social Care,Other Children's & Families Services,Supplies and Services,07/12/2011,419810,1200,REVENUE,Stagecoach in Peterborough
Peterborough City Council,More than one Service Area Category,More than one Service Division,Transport,07/12/2011,419858,961.8,REVENUE,R T Enterprises Ltd T/A Royal Taxis
Peterborough City Council,Support Services,Support Services,Supplies and Services,07/12/2011,419878,8400,REVENUE,Ntrinsic Consulting Europe Ltd
Peterborough City Council,Children's & Education Services - Children's Social Care,Support Services & Management Costs,Supplies and Services,07/12/2011,419903,840,REVENUE,"Bennett, Mr Jonathan"
Peterborough City Council,Housing Services,Homelessness,Supplies and Services,07/12/2011,420084,571.2,REVENUE,DA Rosalia Hotel
Peterborough City Council,"Highways, Roads & Transport Services",Public Transport,Supplies and Services,07/12/2011,420199,34588.81,REVENUE,Stagecoach in Peterborough
Peterborough City Council,Planning Services,Development Control,Fees and Charges,07/12/2011,420698,670,REVENUE,Richardson And Cock Ltd
Peterborough City Council,More than one Service Area Category,More than one Service Division,Balance Sheet,07/12/2011,420870,7000,Balance Sheet,Rapid Solicitors
Peterborough City Council,Capital,Capital,Capital Pending Update to BS,07/12/2011,420916,18000,CAPITAL,L Garfield (Builders) Ltd
Peterborough City Council,Children's & Education Services - Education,Non-School Funding,Employees,07/12/2011,420935,683.76,REVENUE,Mana Resourcing Ltd
Peterborough City Council,Children's & Education Services - Education,Secondary,Employees,07/12/2011,421019,10944,REVENUE,Mana Resourcing Ltd
Peterborough City Council,Children's & Education Services - Education,Non-School Funding,Supplies and Services,07/12/2011,421101,811.8,REVENUE,Beeches Pre-School
Peterborough City Council,Children's & Education Services - Education,Non-School Funding,Supplies and Services,07/12/2011,421103,946.8,REVENUE,Kindercare Pre-School Ltd
Peterborough City Council,Children's & Education Services - Education,Non-School Funding,Supplies and Services,07/12/2011,421125,1105.2,REVENUE,St Josephs Day Nursery
Peterborough City Council,Children's & Education Services - Education,Non-School Funding,Supplies and Services,07/12/2011,421126,569.52,REVENUE,Dogsthorpe Community Pre-School
Peterborough City Council,Children's & Education Services - Education,Non-School Funding,Supplies and Services,07/12/2011,421331,667.5,REVENUE,Parnwell Family Project Playgroup
Peterborough City Council,Children's & Education Services - Education,Non-School Funding,Supplies and Services,07/12/2011,421348,1294.2,REVENUE,Little Stars Day Nursery
Peterborough City Council,Children's & Education Services - Education,Non-School Funding,Supplies and Services,07/12/2011,421352,569.52,REVENUE,Eye Pre-School
Peterborough City Council,Children's & Education Services - Education,Non-School Funding,Supplies and Services,07/12/2011,421354,556.56,REVENUE,Millfield Pre-School
Peterborough City Council,Children's & Education Services - Education,Non-School Funding,Supplies and Services,07/12/2011,421356,687.6,REVENUE,Little Tigers Day Nursery
Peterborough City Council,Children's & Education Services - Education,Non-School Funding,Supplies and Services,07/12/2011,421360,562.86,REVENUE,St Johns C of E Pre-School
Peterborough City Council,Children's & Education Services - Education,Non-School Funding,Supplies and Services,07/12/2011,421377,577.08,REVENUE,South Bretton PS Middleton
Peterborough City Council,Children's & Education Services - Education,Non-School Funding,Supplies and Services,07/12/2011,421378,1084.32,REVENUE,PSLA
Peterborough City Council,Children's & Education Services - Education,Non-School Funding,Supplies and Services,07/12/2011,421380,561.6,REVENUE,Welland Pre-School
Peterborough City Council,Children's & Education Services - Education,Non-School Funding,Supplies and Services,07/12/2011,421381,504,REVENUE,Bright Star's day Nursery
Peterborough City Council,Children's & Education Services - Education,Non-School Funding,Supplies and Services,07/12/2011,421383,12030.68,REVENUE,Family Action
Peterborough City Council,Children's & Education Services - Education,Non-School Funding,Supplies and Services,07/12/2011,421386,766.68,REVENUE,Family Action
Peterborough City Council,Children's & Education Services - Education,Non-School Funding,Supplies and Services,07/12/2011,421394,801.36,REVENUE,Bunny Tots Pre-School
Peterborough City Council,Children's & Education Services - Education,Non-School Funding,Supplies and Services,07/12/2011,421396,574.56,REVENUE,Family Action
Peterborough City Council,Children's & Education Services - Education,Non-School Funding,Supplies and Services,07/12/2011,421397,565.2,REVENUE,PSLA
Peterborough City Council,Children's & Education Services - Education,Non-School Funding,Supplies and Services,07/12/2011,421410,622.8,REVENUE,Braybrook Nursery
Peterborough City Council,Children's & Education Services - Education,Non-School Funding,Supplies and Services,07/12/2011,421416,853.56,REVENUE,Pakistan Comm Ass of PBoro Pre- School
Peterborough City Council,Children's & Education Services - Education,Non-School Funding,Supplies and Services,07/12/2011,421428,896.4,REVENUE,St Thomas More Catholic Nursery
Peterborough City Council,Children's & Education Services - Education,Non-School Funding,Supplies and Services,07/12/2011,421434,579.6,REVENUE,West Town Playgroup
Peterborough City Council,Children's & Education Services - Education,Non-School Funding,Supplies and Services,07/12/2011,421438,881.16,REVENUE,Newark Playgroup
Peterborough City Council,Children's & Education Services - Education,Non-School Funding,Supplies and Services,07/12/2011,421440,711.15,REVENUE,Little Tigers Day Nursery
Peterborough City Council,Children's & Education Services - Children's Social Care,Other Children's & Families Services,Employees,07/12/2011,421447,-1754.4,REVENUE,Sanctuary Personnel Ltd
Peterborough City Council,Central Services to the Public,Elections,Supplies and Services,07/12/2011,421475,1341.36,REVENUE,Royal Mail
Peterborough City Council,Support Services,Support Services,Premises,07/12/2011,421477,2300.21,REVENUE,Eastern Shires Purchasing Organisation
Peterborough City Council,Support Services,Support Services,Premises,07/12/2011,421478,8757.9,REVENUE,Eastern Shires Purchasing Organisation
Peterborough City Council,Children's & Education Services - Children's Social Care,Children Looked After,Supplies and Services - Transfer Payments,07/12/2011,421518,532.56,REVENUE,Redacted Personal Data
Peterborough City Council,Children's & Education Services - Children's Social Care,Children Looked After,Supplies and Services - Transfer Payments,07/12/2011,421519,647.43,REVENUE,Redacted Personal Data
Peterborough City Council,Children's & Education Services - Children's Social Care,Children Looked After,Supplies and Services - Transfer Payments,07/12/2011,421520,647.43,REVENUE,Redacted Personal Data
Peterborough City Council,Children's & Education Services - Children's Social Care,Children Looked After,Supplies and Services - Transfer Payments,07/12/2011,421521,647.43,REVENUE,Redacted Personal Data
Peterborough City Council,Children's & Education Services - Children's Social Care,Children Looked After,Supplies and Services - Transfer Payments,07/12/2011,421522,570.36,REVENUE,Redacted Personal Data
Peterborough City Council,Children's & Education Services - Children's Social Care,Children Looked After,Supplies and Services - Transfer Payments,07/12/2011,421523,647.43,REVENUE,Redacted Personal Data
Peterborough City Council,Children's & Education Services - Children's Social Care,Children Looked After,Supplies and Services - Transfer Payments,07/12/2011,421524,532.56,REVENUE,Redacted Personal Data
Peterborough City Council,Children's & Education Services - Children's Social Care,Children Looked After,Supplies and Services - Transfer Payments,07/12/2011,421526,532.56,REVENUE,Redacted Personal Data
Peterborough City Council,Children's & Education Services - Children's Social Care,Children Looked After,Supplies and Services - Transfer Payments,07/12/2011,421527,532.56,REVENUE,Redacted Personal Data
Peterborough City Council,Children's & Education Services - Children's Social Care,Other Children's & Families Services,Supplies and Services - Transfer Payments,07/12/2011,421546,600,REVENUE,Redacted Personal Data
Peterborough City Council,Children's & Education Services - Children's Social Care,Other Children's & Families Services,Supplies and Services - Transfer Payments,07/12/2011,421547,613.6,REVENUE,Redacted Personal Data
Peterborough City Council,Children's & Education Services - Children's Social Care,Children Looked After,Supplies and Services - Transfer Payments,07/12/2011,421654,616.18,REVENUE,Redacted Personal Data
Peterborough City Council,Children's & Education Services - Children's Social Care,Children Looked After,Supplies and Services - Transfer Payments,07/12/2011,421655,776.79,REVENUE,Redacted Personal Data
Peterborough City Council,Children's & Education Services - Children's Social Care,Children Looked After,Supplies and Services - Transfer Payments,07/12/2011,421656,776.79,REVENUE,Redacted Personal Data
Peterborough City Council,Children's & Education Services - Children's Social Care,Children Looked After,Supplies and Services - Transfer Payments,07/12/2011,421657,707.42,REVENUE,Redacted Personal Data
Peterborough City Council,Children's & Education Services - Children's Social Care,Children Looked After,Supplies and Services - Transfer Payments,07/12/2011,421658,560.98,REVENUE,Redacted Personal Data
Peterborough City Council,Children's & Education Services - Children's Social Care,Children Looked After,Supplies and Services - Transfer Payments,07/12/2011,421659,529.9,REVENUE,Redacted Personal Data
Peterborough City Council,Children's & Education Services - Children's Social Care,Children Looked After,Supplies and Services - Transfer Payments,07/12/2011,421660,615.58,REVENUE,Redacted Personal Data
Peterborough City Council,Children's & Education Services - Children's Social Care,Children Looked After,Supplies and Services - Transfer Payments,07/12/2011,421661,707.42,REVENUE,Redacted Personal Data
Peterborough City Council,Children's & Education Services - Children's Social Care,Children Looked After,Supplies and Services - Transfer Payments,07/12/2011,421662,707.42,REVENUE,Redacted Personal Data
Peterborough City Council,Children's & Education Services - Children's Social Care,Children Looked After,Supplies and Services - Transfer Payments,07/12/2011,421663,707.42,REVENUE,Redacted Personal Data
Peterborough City Council,Children's & Education Services - Children's Social Care,Children Looked After,Supplies and Services - Transfer Payments,07/12/2011,421664,707.42,REVENUE,Redacted Personal Data
Peterborough City Council,Children's & Education Services - Children's Social Care,Children Looked After,Supplies and Services - Transfer Payments,07/12/2011,421665,707.42,REVENUE,Redacted Personal Data
Peterborough City Council,Children's & Education Services - Children's Social Care,Children Looked After,Supplies and Services - Transfer Payments,07/12/2011,421666,776.79,REVENUE,Redacted Personal Data
Peterborough City Council,Children's & Education Services - Children's Social Care,Children Looked After,Supplies and Services - Transfer Payments,07/12/2011,421667,707.42,REVENUE,Redacted Personal Data
Peterborough City Council,Children's & Education Services - Children's Social Care,Children Looked After,Supplies and Services - Transfer Payments,07/12/2011,421668,532.56,REVENUE,Redacted Personal Data
Peterborough City Council,Children's & Education Services - Children's Social Care,Children Looked After,Supplies and Services - Transfer Payments,07/12/2011,421669,776.79,REVENUE,Redacted Personal Data
Peterborough City Council,Children's & Education Services - Children's Social Care,Children Looked After,Supplies and Services - Transfer Payments,07/12/2011,421670,776.79,REVENUE,Redacted Personal Data
Peterborough City Council,Children's & Education Services - Children's Social Care,Children Looked After,Supplies and Services - Transfer Payments,07/12/2011,421671,626.43,REVENUE,Redacted Personal Data
Peterborough City Council,Children's & Education Services - Children's Social Care,Children Looked After,Supplies and Services - Transfer Payments,07/12/2011,421672,707.42,REVENUE,Redacted Personal Data
Peterborough City Council,Children's & Education Services - Children's Social Care,Children Looked After,Supplies and Services - Transfer Payments,07/12/2011,421673,626.43,REVENUE,Redacted Personal Data
Peterborough City Council,Children's & Education Services - Children's Social Care,Children Looked After,Supplies and Services - Transfer Payments,07/12/2011,421674,726.79,REVENUE,Redacted Personal Data
Peterborough City Council,Children's & Education Services - Children's Social Care,Children Looked After,Supplies and Services - Transfer Payments,07/12/2011,421675,707.42,REVENUE,Redacted Personal Data
Peterborough City Council,Children's & Education Services - Children's Social Care,Children Looked After,Supplies and Services - Transfer Payments,07/12/2011,421676,707.42,REVENUE,Redacted Personal Data
Peterborough City Council,Children's & Education Services - Children's Social Care,Children Looked After,Supplies and Services - Transfer Payments,07/12/2011,421677,776.79,REVENUE,Redacted Personal Data
Peterborough City Council,Children's & Education Services - Children's Social Care,Children Looked After,Supplies and Services - Transfer Payments,07/12/2011,421678,626.43,REVENUE,Redacted Personal Data
Peterborough City Council,Children's & Education Services - Children's Social Care,Children Looked After,Supplies and Services - Transfer Payments,07/12/2011,421679,626.43,REVENUE,Redacted Personal Data
Peterborough City Council,Children's & Education Services - Children's Social Care,Children Looked After,Supplies and Services - Transfer Payments,07/12/2011,421680,707.42,REVENUE,Redacted Personal Data
Peterborough City Council,Children's & Education Services - Children's Social Care,Children Looked After,Supplies and Services - Transfer Payments,07/12/2011,421681,707.42,REVENUE,Redacted Personal Data
Peterborough City Council,Children's & Education Services - Children's Social Care,Children Looked After,Supplies and Services - Transfer Payments,07/12/2011,421682,707.42,REVENUE,Redacted Personal Data
Peterborough City Council,Children's & Education Services - Children's Social Care,Children Looked After,Supplies and Services - Transfer Payments,07/12/2011,421684,626.43,REVENUE,Redacted Personal Data
Peterborough City Council,Children's & Education Services - Children's Social Care,Children Looked After,Supplies and Services - Transfer Payments,07/12/2011,421685,714.42,REVENUE,Redacted Personal Data
Peterborough City Council,Children's & Education Services - Children's Social Care,Children Looked After,Supplies and Services - Transfer Payments,07/12/2011,421688,626.43,REVENUE,Redacted Personal Data
Peterborough City Council,Children's & Education Services - Children's Social Care,Children Looked After,Supplies and Services - Transfer Payments,07/12/2011,421689,626.43,REVENUE,Redacted Personal Data
Peterborough City Council,Children's & Education Services - Children's Social Care,Children Looked After,Supplies and Services - Transfer Payments,07/12/2011,421690,615.58,REVENUE,Redacted Personal Data
Peterborough City Council,Children's & Education Services - Children's Social Care,Children Looked After,Supplies and Services - Transfer Payments,07/12/2011,421691,534.45,REVENUE,Redacted Personal Data
Peterborough City Council,Children's & Education Services - Children's Social Care,Children Looked After,Supplies and Services - Transfer Payments,07/12/2011,421692,776.79,REVENUE,Redacted Personal Data
Peterborough City Council,Children's & Education Services - Children's Social Care,Children Looked After,Supplies and Services - Transfer Payments,07/12/2011,421693,885.08,REVENUE,Redacted Personal Data
Peterborough City Council,Children's & Education Services - Children's Social Care,Children Looked After,Supplies and Services - Transfer Payments,07/12/2011,421694,602.49,REVENUE,Redacted Personal Data
Peterborough City Council,Children's & Education Services - Children's Social Care,Children Looked After,Supplies and Services - Transfer Payments,07/12/2011,421695,571.83,REVENUE,Redacted Personal Data
Peterborough City Council,Children's & Education Services - Children's Social Care,Children Looked After,Supplies and Services - Transfer Payments,07/12/2011,421696,707.42,REVENUE,Redacted Personal Data
Peterborough City Council,Children's & Education Services - Children's Social Care,Children Looked After,Supplies and Services - Transfer Payments,07/12/2011,421697,776.79,REVENUE,Redacted Personal Data
Peterborough City Council,Children's & Education Services - Children's Social Care,Children Looked After,Supplies and Services - Transfer Payments,07/12/2011,421698,571.83,REVENUE,Redacted Personal Data
Peterborough City Council,Children's & Education Services - Children's Social Care,Children Looked After,Supplies and Services - Transfer Payments,07/12/2011,421699,707.42,REVENUE,Redacted Personal Data
Peterborough City Council,Children's & Education Services - Children's Social Care,Children Looked After,Supplies and Services - Transfer Payments,07/12/2011,421700,776.79,REVENUE,Redacted Personal Data
Peterborough City Council,Children's & Education Services - Children's Social Care,Children Looked After,Supplies and Services - Transfer Payments,07/12/2011,421701,534.45,REVENUE,Redacted Personal Data
Peterborough City Council,Children's & Education Services - Children's Social Care,Children Looked After,Supplies and Services - Transfer Payments,07/12/2011,421702,626.43,REVENUE,Redacted Personal Data
Peterborough City Council,Children's & Education Services - Children's Social Care,Children Looked After,Supplies and Services - Transfer Payments,07/12/2011,421703,626.43,REVENUE,Redacted Personal Data
Peterborough City Council,Children's & Education Services - Children's Social Care,Children Looked After,Supplies and Services - Transfer Payments,07/12/2011,421704,571.83,REVENUE,Redacted Personal Data
Peterborough City Council,Children's & Education Services - Children's Social Care,Children Looked After,Supplies and Services - Transfer Payments,07/12/2011,421706,776.79,REVENUE,Redacted Personal Data
Peterborough City Council,Children's & Education Services - Children's Social Care,Children Looked After,Supplies and Services - Transfer Payments,07/12/2011,421715,707.42,REVENUE,Redacted Personal Data
Peterborough City Council,Children's & Education Services - Children's Social Care,Children Looked After,Supplies and Services - Transfer Payments,07/12/2011,421718,707.42,REVENUE,Redacted Personal Data
Peterborough City Council,Children's & Education Services - Children's Social Care,Children Looked After,Supplies and Services - Transfer Payments,07/12/2011,421719,626.43,REVENUE,Redacted Personal Data
Peterborough City Council,Children's & Education Services - Children's Social Care,Children Looked After,Supplies and Services - Transfer Payments,07/12/2011,421720,707.42,REVENUE,Redacted Personal Data
Peterborough City Council,Children's & Education Services - Children's Social Care,Children Looked After,Supplies and Services - Transfer Payments,07/12/2011,421721,626.43,REVENUE,Redacted Personal Data
Peterborough City Council,Children's & Education Services - Children's Social Care,Children Looked After,Supplies and Services - Transfer Payments,07/12/2011,421722,571.83,REVENUE,Redacted Personal Data
Peterborough City Council,Children's & Education Services - Children's Social Care,Family Support Services,Supplies and Services,07/12/2011,421727,1148.22,REVENUE,Redacted Personal Data
Peterborough City Council,Children's & Education Services - Children's Social Care,Children Looked After,Supplies and Services - Transfer Payments,07/12/2011,421744,571.83,REVENUE,Redacted Personal Data
Peterborough City Council,Children's & Education Services - Children's Social Care,Children Looked After,Supplies and Services - Transfer Payments,07/12/2011,421746,776.79,REVENUE,Redacted Personal Data
Peterborough City Council,Children's & Education Services - Children's Social Care,Children Looked After,Supplies and Services - Transfer Payments,07/12/2011,421749,557.82,REVENUE,Redacted Personal Data
Peterborough City Council,Children's & Education Services - Children's Social Care,Children Looked After,Supplies and Services - Transfer Payments,07/12/2011,421750,557.82,REVENUE,Redacted Personal Data
Peterborough City Council,Children's & Education Services - Children's Social Care,Children Looked After,Supplies and Services - Transfer Payments,07/12/2011,421753,885.08,REVENUE,Redacted Personal Data
Peterborough City Council,Children's & Education Services - Children's Social Care,Children Looked After,Supplies and Services - Transfer Payments,07/12/2011,421755,885.08,REVENUE,Redacted Personal Data
Peterborough City Council,Children's & Education Services - Children's Social Care,Children Looked After,Supplies and Services - Transfer Payments,07/12/2011,421756,885.08,REVENUE,Redacted Personal Data
Peterborough City Council,Children's & Education Services - Children's Social Care,Children Looked After,Supplies and Services - Transfer Payments,07/12/2011,421757,885.08,REVENUE,Redacted Personal Data
Peterborough City Council,Children's & Education Services - Children's Social Care,Children Looked After,Supplies and Services - Transfer Payments,07/12/2011,421758,885.08,REVENUE,Redacted Personal Data
Peterborough City Council,Children's & Education Services - Children's Social Care,Children Looked After,Supplies and Services - Transfer Payments,07/12/2011,421759,571.83,REVENUE,Redacted Personal Data
Peterborough City Council,Children's & Education Services - Children's Social Care,Children Looked After,Supplies and Services - Transfer Payments,07/12/2011,421760,571.83,REVENUE,Redacted Personal Data
Peterborough City Council,Children's & Education Services - Children's Social Care,Children Looked After,Supplies and Services - Transfer Payments,07/12/2011,421763,707.42,REVENUE,Redacted Personal Data
Peterborough City Council,Children's & Education Services - Children's Social Care,Children Looked After,Supplies and Services - Transfer Payments,07/12/2011,421764,572.23,REVENUE,Redacted Personal Data
Peterborough City Council,Children's & Education Services - Children's Social Care,Children Looked After,Supplies and Services - Transfer Payments,07/12/2011,421768,571.83,REVENUE,Redacted Personal Data
Peterborough City Council,Children's & Education Services - Children's Social Care,Children Looked After,Supplies and Services - Transfer Payments,07/12/2011,421771,571.83,REVENUE,Redacted Personal Data
Peterborough City Council,Children's & Education Services - Children's Social Care,Children Looked After,Supplies and Services - Transfer Payments,07/12/2011,421776,602.04,REVENUE,Redacted Personal Data
Peterborough City Council,Children's & Education Services - Children's Social Care,Children Looked After,Supplies and Services - Transfer Payments,07/12/2011,421777,707.42,REVENUE,Redacted Personal Data
Peterborough City Council,Children's & Education Services - Children's Social Care,Children Looked After,Supplies and Services - Transfer Payments,07/12/2011,421792,571.83,REVENUE,Redacted Personal Data
Peterborough City Council,Children's & Education Services - Children's Social Care,Children Looked After,Supplies and Services - Transfer Payments,07/12/2011,421796,560.98,REVENUE,Redacted Personal Data
Peterborough City Council,Children's & Education Services - Children's Social Care,Children Looked After,Supplies and Services - Transfer Payments,07/12/2011,421804,776.79,REVENUE,Redacted Personal Data
Peterborough City Council,Children's & Education Services - Children's Social Care,Children Looked After,Supplies and Services - Transfer Payments,07/12/2011,421806,571.83,REVENUE,Redacted Personal Data
Peterborough City Council,Children's & Education Services - Children's Social Care,Children Looked After,Supplies and Services - Transfer Payments,07/12/2011,421813,571.83,REVENUE,Redacted Personal Data
Peterborough City Council,Children's & Education Services - Children's Social Care,Children Looked After,Supplies and Services - Transfer Payments,07/12/2011,421819,571.83,REVENUE,Redacted Personal Data
Peterborough City Council,Children's & Education Services - Children's Social Care,Children Looked After,Supplies and Services - Transfer Payments,07/12/2011,421821,707.42,REVENUE,Redacted Personal Data
Peterborough City Council,Children's & Education Services - Children's Social Care,Children Looked After,Supplies and Services - Transfer Payments,07/12/2011,421822,626.43,REVENUE,Redacted Personal Data
Peterborough City Council,Children's & Education Services - Children's Social Care,Children Looked After,Supplies and Services - Transfer Payments,07/12/2011,421823,707.42,REVENUE,Redacted Personal Data
Peterborough City Council,Children's & Education Services - Children's Social Care,Children Looked After,Supplies and Services - Transfer Payments,07/12/2011,421825,571.83,REVENUE,Redacted Personal Data
Peterborough City Council,Children's & Education Services - Children's Social Care,Children Looked After,Supplies and Services - Transfer Payments,07/12/2011,421827,626.43,REVENUE,Redacted Personal Data
Peterborough City Council,Children's & Education Services - Children's Social Care,Children Looked After,Supplies and Services - Transfer Payments,07/12/2011,421828,626.43,REVENUE,Redacted Personal Data
Peterborough City Council,Children's & Education Services - Children's Social Care,Children Looked After,Supplies and Services - Transfer Payments,07/12/2011,421830,647.43,REVENUE,Redacted Personal Data
Peterborough City Council,Children's & Education Services - Children's Social Care,Children Looked After,Supplies and Services - Transfer Payments,07/12/2011,421838,707.42,REVENUE,Redacted Personal Data
Peterborough City Council,Children's & Education Services - Children's Social Care,Children Looked After,Supplies and Services - Transfer Payments,07/12/2011,421839,571.83,REVENUE,Redacted Personal Data
Peterborough City Council,Children's & Education Services - Children's Social Care,Children Looked After,Supplies and Services - Transfer Payments,07/12/2011,421840,626.43,REVENUE,Redacted Personal Data
Peterborough City Council,Children's & Education Services - Children's Social Care,Children Looked After,Supplies and Services - Transfer Payments,07/12/2011,421844,571.83,REVENUE,Redacted Personal Data
Peterborough City Council,Children's & Education Services - Children's Social Care,Children Looked After,Supplies and Services - Transfer Payments,07/12/2011,421848,532.56,REVENUE,Redacted Personal Data
Peterborough City Council,Children's & Education Services - Children's Social Care,Children Looked After,Supplies and Services - Transfer Payments,07/12/2011,421850,647.43,REVENUE,Redacted Personal Data
Peterborough City Council,Children's & Education Services - Children's Social Care,Children Looked After,Supplies and Services - Transfer Payments,07/12/2011,421851,626.43,REVENUE,Redacted Personal Data
Peterborough City Council,Children's & Education Services - Children's Social Care,Children Looked After,Supplies and Services - Transfer Payments,07/12/2011,421852,707.42,REVENUE,Redacted Personal Data
Peterborough City Council,Children's & Education Services - Children's Social Care,Children Looked After,Supplies and Services - Transfer Payments,07/12/2011,421857,780.5,REVENUE,Redacted Personal Data
Peterborough City Council,Children's & Education Services - Children's Social Care,Children Looked After,Supplies and Services - Transfer Payments,07/12/2011,421858,532.56,REVENUE,Redacted Personal Data
Peterborough City Council,Children's & Education Services - Children's Social Care,Children Looked After,Supplies and Services - Transfer Payments,07/12/2011,421859,626.43,REVENUE,Redacted Personal Data
Peterborough City Council,Children's & Education Services - Children's Social Care,Children Looked After,Supplies and Services - Transfer Payments,07/12/2011,421860,626.43,REVENUE,Redacted Personal Data
Peterborough City Council,Children's & Education Services - Children's Social Care,Children Looked After,Supplies and Services - Transfer Payments,07/12/2011,421867,572.67,REVENUE,Redacted Personal Data
Peterborough City Council,Children's & Education Services - Children's Social Care,Children Looked After,Supplies and Services - Transfer Payments,07/12/2011,421868,562.58,REVENUE,Redacted Personal Data
Peterborough City Council,Children's & Education Services - Children's Social Care,Children Looked After,Supplies and Services - Transfer Payments,07/12/2011,421871,707.42,REVENUE,Redacted Personal Data
Peterborough City Council,Children's & Education Services - Children's Social Care,Children Looked After,Supplies and Services - Transfer Payments,07/12/2011,421872,571.83,REVENUE,Redacted Personal Data
Peterborough City Council,Children's & Education Services - Children's Social Care,Children Looked After,Supplies and Services - Transfer Payments,07/12/2011,421873,571.83,REVENUE,Redacted Personal Data
Peterborough City Council,Children's & Education Services - Children's Social Care,Children Looked After,Supplies and Services - Transfer Payments,07/12/2011,421874,769.02,REVENUE,Redacted Personal Data
Peterborough City Council,Children's & Education Services - Children's Social Care,Children Looked After,Supplies and Services - Transfer Payments,07/12/2011,421882,626.43,REVENUE,Redacted Personal Data
Peterborough City Council,Children's & Education Services - Children's Social Care,Children Looked After,Supplies and Services - Transfer Payments,07/12/2011,421901,567.75,REVENUE,Redacted Personal Data
Peterborough City Council,More than one Service Area Category,More than one Service Division,More than one Expenses Type,07/12/2011,421912,2216,"Mixture of Capital, Revenue and/or Balance Sheet",P F S Builders & Contractors
Peterborough City Council,More than one Service Area Category,More than one Service Division,Balance Sheet,07/12/2011,421921,960,Balance Sheet,Redacted Personal Data
Peterborough City Council,Children's & Education Services - Children's Social Care,Children Looked After,Supplies and Services,07/12/2011,421923,837,REVENUE,Vivacity Culture and Leisure
Peterborough City Council,Support Services,Support Services,Premises,07/12/2011,421925,600,REVENUE,Dept for Work & Pensions
Peterborough City Council,More than one Service Area Category,More than one Service Division,More than one Expenses Type,07/12/2011,421927,2038,"Mixture of Capital, Revenue and/or Balance Sheet",S R K Engineering
Peterborough City Council,More than one Service Area Category,More than one Service Division,More than one Expenses Type,07/12/2011,421931,4976,"Mixture of Capital, Revenue and/or Balance Sheet",T G Development Ltd
Peterborough City Council,Children's & Education Services - Education,Secondary,Supplies and Services,07/12/2011,422005,886,REVENUE,NACRO
Peterborough City Council,Capital,Capital,Capital Pending Update to BS,07/12/2011,422018,2027.97,CAPITAL,Portakabin Ltd
Peterborough City Council,Children's & Education Services - Education,Non-School Funding,Transport,07/12/2011,422038,716.13,REVENUE,Aardvark Coaches
Peterborough City Council,Children's & Education Services - Education,Non-School Funding,Transport,07/12/2011,422039,614.13,REVENUE,Aardvark Coaches
Peterborough City Council,Children's & Education Services - Education,Non-School Funding,Transport,07/12/2011,422040,620.5,REVENUE,Aardvark Coaches
Peterborough City Council,Children's & Education Services - Education,Non-School Funding,Transport,07/12/2011,422041,699.13,REVENUE,Aardvark Coaches
Peterborough City Council,Children's & Education Services - Education,Non-School Funding,Transport,07/12/2011,422042,735.25,REVENUE,Aardvark Coaches
Peterborough City Council,Children's & Education Services - Children's Social Care,Family Support Services,Supplies and Services,07/12/2011,422095,2700,REVENUE,Redacted Personal Data
Peterborough City Council,Adult Social Care,Adult Social Care,Third Party Payments,07/12/2011,422118,3305909.1,REVENUE,Peterborough PCT
Peterborough City Council,Support Services,Support Services,Supplies and Services,07/12/2011,422119,20160,REVENUE,AMTEC Consulting Plc
Peterborough City Council,Capital,Capital,Capital Pending Update to BS,07/12/2011,422120,18540,CAPITAL,AMTEC Consulting Plc
Peterborough City Council,Capital,Capital,Capital Pending Update to BS,07/12/2011,422121,7895.18,CAPITAL,AMTEC Consulting Plc
Peterborough City Council,More than one Service Area Category,More than one Service Division,Balance Sheet,07/12/2011,422122,6316.74,Balance Sheet,Redacted Personal Data
Peterborough City Council,Support Services,Support Services,Supplies and Services,07/12/2011,422123,11067,REVENUE,AMTEC Consulting Plc
Peterborough City Council,Support Services,Support Services,Supplies and Services,07/12/2011,422124,17010,REVENUE,AMTEC Consulting Plc
Peterborough City Council,Support Services,Support Services,Supplies and Services,07/12/2011,422125,43002,REVENUE,AMTEC Consulting Plc
Peterborough City Council,Capital,Capital,Capital Pending Update to BS,07/12/2011,422126,2862,CAPITAL,AMTEC Consulting Plc
Peterborough City Council,Support Services,Support Services & Management Costs,Supplies and Services,07/12/2011,422127,3600,REVENUE,AMTEC Consulting Plc
Peterborough City Council,Support Services,Support Services & Management Costs,Supplies and Services,07/12/2011,422128,1800,REVENUE,AMTEC Consulting Plc
Peterborough City Council,Children's & Education Services - Education,Other School -related Education Functions,Supplies and Services,07/12/2011,422129,13800,REVENUE,AMTEC Consulting Plc
Peterborough City Council,Central Services to the Public,Elections,Supplies and Services,07/12/2011,422130,5241.6,REVENUE,AMTEC Consulting Plc
Peterborough City Council,Support Services,Support Services & Management Costs,Supplies and Services,07/12/2011,422131,1440,REVENUE,AMTEC Consulting Plc
Peterborough City Council,Capital,Capital,Capital Pending Update to BS,07/12/2011,422132,37665.6,CAPITAL,AMTEC Consulting Plc
Peterborough City Council,Capital,Capital,Capital Pending Update to BS,07/12/2011,422133,8592,CAPITAL,AMTEC Consulting Plc
Peterborough City Council,Support Services,Support Services,Supplies and Services,07/12/2011,422134,16200,REVENUE,AMTEC Consulting Plc
Peterborough City Council,Capital,Capital,Capital Pending Update to BS,07/12/2011,422135,1440,CAPITAL,AMTEC Consulting Plc
Peterborough City Council,Capital,Capital,Capital Pending Update to BS,07/12/2011,422136,8429.95,CAPITAL,AMTEC Consulting Plc
Peterborough City Council,Planning Services,Economic Development,Third Party Payments,07/12/2011,422137,17055.02,REVENUE,AMTEC Consulting Plc
Peterborough City Council,Adult Social Care,Service Strategy,Supplies and Services,07/12/2011,422138,55095,REVENUE,AMTEC Consulting Plc
Peterborough City Council,Support Services,Support Services,Supplies and Services,07/12/2011,422139,885.6,REVENUE,AMTEC Consulting Plc
Peterborough City Council,Support Services,Support Services,Supplies and Services,07/12/2011,422140,885.6,REVENUE,AMTEC Consulting Plc
Peterborough City Council,Support Services,Support Services,Supplies and Services,07/12/2011,422141,17934,REVENUE,AMTEC Consulting Plc
Peterborough City Council,Children's & Education Services - Education,Other School -related Education Functions,Supplies and Services,07/12/2011,422142,8575.2,REVENUE,AMTEC Consulting Plc
Peterborough City Council,Children's & Education Services - Education,Other School -related Education Functions,Supplies and Services,07/12/2011,422143,8575.2,REVENUE,AMTEC Consulting Plc
Peterborough City Council,Deficit/(Surplus) on Trading Undertakings,Trading Account Surpluses & Deficits,Supplies and Services,07/12/2011,422144,10603.2,REVENUE,AMTEC Consulting Plc
Peterborough City Council,Central Services to the Public,Local Tax,Supplies and Services,07/12/2011,422145,22366.8,REVENUE,AMTEC Consulting Plc
Peterborough City Council,Support Services,Support Services,Supplies and Services,07/12/2011,422146,8100,REVENUE,AMTEC Consulting Plc
Peterborough City Council,Capital,Capital,Capital Pending Update to BS,07/12/2011,422147,61912.8,CAPITAL,AMTEC Consulting Plc
Peterborough City Council,Capital,Capital,Capital Pending Update to BS,07/12/2011,422148,11924.4,CAPITAL,AMTEC Consulting Plc
Peterborough City Council,Capital,Capital,Capital Pending Update to BS,07/12/2011,422149,13162.5,CAPITAL,AMTEC Consulting Plc
Peterborough City Council,Capital,Capital,Capital Pending Update to BS,07/12/2011,422150,2385,CAPITAL,AMTEC Consulting Plc
Peterborough City Council,Children's & Education Services - Children's Social Care,Children Looked After,Transport,07/12/2011,422152,919.8,REVENUE,Redacted Personal Data
Peterborough City Council,More than one Service Area Category,More than one Service Division,More than one Expenses Type,07/12/2011,422153,1551.7,REVENUE,Redacted Personal Data
Peterborough City Council,More than one Service Area Category,More than one Service Division,Transport,07/12/2011,422154,1622.25,REVENUE,Redacted Personal Data
Peterborough City Council,More than one Service Area Category,More than one Service Division,Transport,07/12/2011,422155,1215,REVENUE,Redacted Personal Data
Peterborough City Council,Children's & Education Services - Children's Social Care,Children Looked After,Transport,07/12/2011,422158,2184.75,REVENUE,Redacted Personal Data
Peterborough City Council,Children's & Education Services - Children's Social Care,Children Looked After,Transport,07/12/2011,422159,552.15,REVENUE,Redacted Personal Data
Peterborough City Council,More than one Service Area Category,More than one Service Division,Transport,07/12/2011,422160,1913.3,REVENUE,Redacted Personal Data
Peterborough City Council,Children's & Education Services - Children's Social Care,Children Looked After,Transport,07/12/2011,422161,1634.85,REVENUE,Redacted Personal Data
Peterborough City Council,Children's & Education Services - Children's Social Care,Children Looked After,Transport,07/12/2011,422162,2235.4,REVENUE,Redacted Personal Data
Peterborough City Council,Children's & Education Services - Children's Social Care,Children Looked After,Transport,07/12/2011,422164,2245.95,REVENUE,Redacted Personal Data
Peterborough City Council,Children's & Education Services - Children's Social Care,Children Looked After,Transport,07/12/2011,422165,863.15,REVENUE,Redacted Personal Data
Peterborough City Council,Children's & Education Services - Children's Social Care,Children Looked After,Transport,07/12/2011,422166,556.05,REVENUE,Redacted Personal Data
Peterborough City Council,More than one Service Area Category,More than one Service Division,Transport,07/12/2011,422169,837.9,REVENUE,Redacted Personal Data
Peterborough City Council,Children's & Education Services - Children's Social Care,Children Looked After,Transport,07/12/2011,422170,636.3,REVENUE,Redacted Personal Data
Peterborough City Council,Children's & Education Services - Education,Non-School Funding,Supplies and Services,07/12/2011,422174,3522,REVENUE,Leicestershire County Council
Peterborough City Council,Children's & Education Services - Education,Non-School Funding,Supplies and Services,09/12/2011,409065,630,REVENUE,Vivacity Culture and Leisure
Peterborough City Council,Children's & Education Services - Children's Social Care,Children Looked After,More than one Expenses Type,09/12/2011,412969,18894,REVENUE,Chilworth House School
Peterborough City Council,Children's & Education Services - Children's Social Care,Other Children's & Families Services,Third Party Payments,09/12/2011,413343,15000,REVENUE,Family Action
Peterborough City Council,Planning Services,Planning Policy,Supplies and Services,09/12/2011,413416,742.77,REVENUE,Cambridgeshire County Council
Peterborough City Council,Children's & Education Services - Children's Social Care,Children Looked After,Supplies and Services - Transfer Payments,09/12/2011,413451,748.3,REVENUE,Key2
Peterborough City Council,Children's & Education Services - Children's Social Care,Children Looked After,Supplies and Services - Transfer Payments,09/12/2011,413453,1485,REVENUE,Key2
Peterborough City Council,Children's & Education Services - Children's Social Care,Children Looked After,Supplies and Services - Transfer Payments,09/12/2011,415784,3560.59,REVENUE,Key2
Peterborough City Council,Children's & Education Services - Children's Social Care,Children Looked After,Supplies and Services - Transfer Payments,09/12/2011,415791,1534.5,REVENUE,Key2
Peterborough City Council,Children's & Education Services - Children's Social Care,Children Looked After,Supplies and Services - Transfer Payments,09/12/2011,416081,8022.3,REVENUE,I S P
Peterborough City Council,Children's & Education Services - Children's Social Care,Family Support Services,Supplies and Services,09/12/2011,417101,644.52,REVENUE,Sahara Community Care Services
Peterborough City Council,Children's & Education Services - Children's Social Care,Family Support Services,Supplies and Services,09/12/2011,417102,1090.33,REVENUE,Sahara Community Care Services
Peterborough City Council,Children's & Education Services - Children's Social Care,Family Support Services,Supplies and Services,09/12/2011,417443,514.92,REVENUE,Sahara Community Care Services
Peterborough City Council,Children's & Education Services - Education,Secondary,Transport,09/12/2011,417867,7200,REVENUE,Atkins Limited
Peterborough City Council,Capital,Capital,Capital Pending Update to BS,09/12/2011,417870,3000,CAPITAL,Atkins Limited
Peterborough City Council,"Highways, Roads & Transport Services",Highways/road (structural),Transport,09/12/2011,417871,3273.62,REVENUE,Atkins Limited
Peterborough City Council,Deficit/(Surplus) on Trading Undertakings,Trading Account Surpluses & Deficits,Premises,09/12/2011,417874,2595.6,REVENUE,Energy Report Ltd
Peterborough City Council,Capital,Capital,Capital Pending Update to BS,09/12/2011,417884,1182.91,CAPITAL,Atkins Limited
Peterborough City Council,Capital,Capital,Capital Pending Update to BS,09/12/2011,417888,2340.11,CAPITAL,Atkins Limited
Peterborough City Council,Capital,Capital,Capital Pending Update to BS,09/12/2011,417890,1637.57,CAPITAL,Atkins Limited
Peterborough City Council,"Highways, Roads & Transport Services","Transport planning, policy and strategy",Transport,09/12/2011,417891,3844.27,REVENUE,Atkins Limited
Peterborough City Council,Capital,Capital,Capital Pending Update to BS,09/12/2011,417893,2504.11,CAPITAL,Atkins Limited
Peterborough City Council,"Highways, Roads & Transport Services",Street Lighting,Transport,09/12/2011,417894,16734.26,REVENUE,Atkins Limited
Peterborough City Council,Capital,Capital,Capital Pending Update to BS,09/12/2011,417902,5395.12,CAPITAL,Atkins Limited
Peterborough City Council,"Highways, Roads & Transport Services","Transport planning, policy and strategy",Transport,09/12/2011,417911,2856.76,REVENUE,Atkins Limited
Peterborough City Council,"Highways, Roads & Transport Services","Transport planning, policy and strategy",Transport,09/12/2011,417913,849.17,REVENUE,Atkins Limited
Peterborough City Council,Capital,Capital,Capital Pending Update to BS,09/12/2011,417914,4748.77,CAPITAL,Atkins Limited
Peterborough City Council,Capital,Capital,Capital Pending Update to BS,09/12/2011,417972,7427.3,CAPITAL,Atkins Limited
Peterborough City Council,Capital,Capital,Capital Pending Update to BS,09/12/2011,417979,2467.66,CAPITAL,Atkins Limited
Peterborough City Council,Capital,Capital,Capital Pending Update to BS,09/12/2011,417996,7859.48,CAPITAL,Atkins Limited
Peterborough City Council,Capital,Capital,Capital Pending Update to BS,09/12/2011,418002,1958.62,CAPITAL,Atkins Limited
Peterborough City Council,"Highways, Roads & Transport Services","Transport planning, policy and strategy",Transport,09/12/2011,418007,734.76,REVENUE,Atkins Limited
Peterborough City Council,Capital,Capital,Capital Pending Update to BS,09/12/2011,418008,1978.18,CAPITAL,Atkins Limited
Peterborough City Council,"Highways, Roads & Transport Services","Transport planning, policy and strategy",Transport,09/12/2011,418009,5272.24,REVENUE,Atkins Limited
Peterborough City Council,"Highways, Roads & Transport Services","Transport planning, policy and strategy",Transport,09/12/2011,418010,3607.81,REVENUE,Atkins Limited
Peterborough City Council,Capital,Capital,Capital Pending Update to BS,09/12/2011,418012,1640.3,CAPITAL,Atkins Limited
Peterborough City Council,Capital,Capital,Capital Pending Update to BS,09/12/2011,418014,2890.8,CAPITAL,Atkins Limited
Peterborough City Council,"Highways, Roads & Transport Services",Winter Service,Transport,09/12/2011,418016,1370.3,REVENUE,Atkins Limited
Peterborough City Council,Capital,Capital,Capital Pending Update to BS,09/12/2011,418019,4293.59,CAPITAL,Atkins Limited
Peterborough City Council,"Highways, Roads & Transport Services","Environmental, Safety & Routine Maintenance",Transport,09/12/2011,418024,12107.26,REVENUE,Atkins Limited
Peterborough City Council,Capital,Capital,Capital Pending Update to BS,09/12/2011,418030,20912.92,CAPITAL,Atkins Limited
Peterborough City Council,"Cultural, Environmental and Planning Services",Waste Collection,Premises,09/12/2011,418415,591552.54,REVENUE,Enterprise Managed Services Limited
Peterborough City Council,"Cultural, Environmental and Planning Services",Waste Collection,Premises,09/12/2011,418420,768884.42,REVENUE,Enterprise Managed Services Limited
Peterborough City Council,Deficit/(Surplus) on Trading Undertakings,Trading Account Surpluses & Deficits,Premises,09/12/2011,418544,2595.6,REVENUE,Energy Report Ltd
Peterborough City Council,Deficit/(Surplus) on Trading Undertakings,Trading Account Surpluses & Deficits,Premises,09/12/2011,418780,2595.6,REVENUE,Energy Report Ltd
Peterborough City Council,More than one Service Area Category,More than one Service Division,Employees,09/12/2011,419024,1332,REVENUE,Hays Specialist Recruitment Ltd
Peterborough City Council,More than one Service Area Category,More than one Service Division,Employees,09/12/2011,419028,1332,REVENUE,Hays Specialist Recruitment Ltd
Peterborough City Council,Capital,Capital,Capital Pending Update to BS,09/12/2011,419117,265275.6,CAPITAL,E N Suiter & Sons Ltd
Peterborough City Council,Capital,Capital,Capital Pending Update to BS,09/12/2011,419990,72454.71,CAPITAL,Harmony Roofing Serv. Ltd
Peterborough City Council,Deficit/(Surplus) on Trading Undertakings,Trading Account Surpluses & Deficits,Supplies and Services,09/12/2011,420378,1551.38,REVENUE,RMS Engineers LTD
Peterborough City Council,Planning Services,Economic Development,Supplies and Services,09/12/2011,420539,3093.95,REVENUE,Vivacity Culture and Leisure
Peterborough City Council,Housing Services,Private Sector Housing Renewal,Supplies and Services,09/12/2011,420975,903.5,REVENUE,Fletton Electrics Ltd
Peterborough City Council,Planning Services,Economic Development,Supplies and Services,09/12/2011,421379,-1339.81,REVENUE,Hays Specialist Recruitment Ltd
Peterborough City Council,Planning Services,Economic Development,Supplies and Services,09/12/2011,421382,-1547.71,REVENUE,Hays Specialist Recruitment Ltd
Peterborough City Council,Planning Services,Community Development,Supplies and Services,09/12/2011,421917,643.5,REVENUE,Maxey Welcome Club
Peterborough City Council,More than one Service Area Category,More than one Service Division,More than one Expenses Type,09/12/2011,421929,4731,"Mixture of Capital, Revenue and/or Balance Sheet",M J Greaves
Peterborough City Council,More than one Service Area Category,More than one Service Division,More than one Expenses Type,09/12/2011,421936,792,"Mixture of Capital, Revenue and/or Balance Sheet",Allworks Home Improvements Ltd
Peterborough City Council,Children's & Education Services - Education,Non-School Funding,Supplies and Services,09/12/2011,421937,768,REVENUE,Bretton Community Pre-School
Peterborough City Council,Children's & Education Services - Education,Non-School Funding,Supplies and Services,09/12/2011,421939,816,REVENUE,Beeches Pre-School
Peterborough City Council,Children's & Education Services - Education,Non-School Funding,Supplies and Services,09/12/2011,421943,816,REVENUE,East Community Playgroup
Peterborough City Council,Planning Services,Economic Development,Third Party Payments,09/12/2011,421957,500,REVENUE,Old Dogsthorpe Residents Assoc
Peterborough City Council,Planning Services,Economic Development,Third Party Payments,09/12/2011,421972,700,REVENUE,Millfield Community Association
Peterborough City Council,Planning Services,Economic Development,Third Party Payments,09/12/2011,421975,700,REVENUE,Paston & Gunthorpe Comm Association
Peterborough City Council,Planning Services,Economic Development,Third Party Payments,09/12/2011,421976,700,REVENUE,Peakirk Village Hall Committee
Peterborough City Council,Planning Services,Economic Development,Third Party Payments,09/12/2011,421977,700,REVENUE,Wansford Comm Hall
Peterborough City Council,Planning Services,Economic Development,Third Party Payments,09/12/2011,421981,700,REVENUE,Westwood & Ravensthorpe Comm Assoc
Peterborough City Council,Planning Services,Economic Development,Third Party Payments,09/12/2011,421992,700,REVENUE,Glinton Community Association
Peterborough City Council,Planning Services,Economic Development,Third Party Payments,09/12/2011,421993,700,REVENUE,Herlington Community Association
Peterborough City Council,Planning Services,Economic Development,Third Party Payments,09/12/2011,421995,700,REVENUE,Longthorpe Community Association
Peterborough City Council,Planning Services,Economic Development,Third Party Payments,09/12/2011,421997,700,REVENUE,African-Caribbean Forum
Peterborough City Council,Planning Services,Economic Development,Third Party Payments,09/12/2011,422027,700,REVENUE,Hampton Vale Community Association
Peterborough City Council,Housing Services,Supporting People,Third Party Payments,09/12/2011,422030,1094.07,REVENUE,Accent Nene Housing Soc. Ltd
Peterborough City Council,Housing Services,Supporting People,Supplies and Services - Transfer Payments,09/12/2011,422031,23153.64,REVENUE,YMCA Cambridge & Peterborough
Peterborough City Council,Housing Services,Supporting People,Third Party Payments,09/12/2011,422032,2222.25,REVENUE,Terrence Higgins Trust Ltd
Peterborough City Council,Housing Services,Supporting People,Third Party Payments,09/12/2011,422033,10190.99,REVENUE,Stonham Housing Association
Peterborough City Council,Housing Services,Supporting People,Third Party Payments,09/12/2011,422034,1777.8,REVENUE,Peterborough Provider Services
Peterborough City Council,Housing Services,Supporting People,Third Party Payments,09/12/2011,422067,1041.65,REVENUE,Anchor Trust
Peterborough City Council,Housing Services,Supporting People,Third Party Payments,09/12/2011,422069,548.08,REVENUE,Hanover Housing Association
Peterborough City Council,Housing Services,Supporting People,Third Party Payments,09/12/2011,422070,5176.38,REVENUE,Springboard Housing Association
Peterborough City Council,Housing Services,Supporting People,Third Party Payments,09/12/2011,422071,19236,REVENUE,Cross Keys Homes
Peterborough City Council,Housing Services,Supporting People,Third Party Payments,09/12/2011,422073,62521.23,REVENUE,Axiom Housing Association
Peterborough City Council,Housing Services,Supporting People,Third Party Payments,09/12/2011,422074,1777.8,REVENUE,Peterborough Provider Services
Peterborough City Council,Housing Services,Supporting People,Third Party Payments,09/12/2011,422077,5250.72,REVENUE,Peterborough PCT
Peterborough City Council,Housing Services,Supporting People,Third Party Payments,09/12/2011,422078,1777.8,REVENUE,Peterborough PCT
Peterborough City Council,Housing Services,Supporting People,Third Party Payments,09/12/2011,422081,5017.14,REVENUE,Peterborough Womens Aid
Peterborough City Council,Housing Services,Supporting People,Third Party Payments,09/12/2011,422082,2933.36,REVENUE,NACRO
Peterborough City Council,Housing Services,Supporting People,Third Party Payments,09/12/2011,422084,1415.93,REVENUE,Minster General Housing
Peterborough City Council,Planning Services,Community Development,Supplies and Services,09/12/2011,422087,5000,REVENUE,Thorney Parish Council
Peterborough City Council,Support Services,Support Services,Premises,09/12/2011,422173,5877.93,REVENUE,Anglian Water
Peterborough City Council,Support Services,Support Services,Premises,09/12/2011,422176,3559.17,REVENUE,Southern Electric
Peterborough City Council,"Cultural, Environmental and Planning Services",Street Cleansing,Transport,09/12/2011,422218,2314.8,REVENUE,Applied Sweepers Group Leasing Ltd
Peterborough City Council,"Cultural, Environmental and Planning Services",Street Cleansing,Transport,09/12/2011,422220,2266.58,REVENUE,Applied Sweepers Group Leasing Ltd
Peterborough City Council,Support Services,Support Services,Premises,09/12/2011,422242,720,REVENUE,Redacted Personal Data
Peterborough City Council,More than one Service Area Category,More than one Service Division,Balance Sheet,09/12/2011,422243,1607.88,Balance Sheet,Redacted Personal Data
Peterborough City Council,Planning Services,Community Development,Supplies and Services,09/12/2011,422264,45000,REVENUE,Innova Development Trust
Peterborough City Council,Children's & Education Services - Education,Non-School Funding,Supplies and Services,09/12/2011,422266,6750,REVENUE,Redacted Personal Data
Peterborough City Council,Children's & Education Services - Education,Non-School Funding,Transport,09/12/2011,422280,2006.4,REVENUE,3 Star Ambassador Taxis
Peterborough City Council,Children's & Education Services - Education,Non-School Funding,Transport,09/12/2011,422281,768,REVENUE,3 Star Ambassador Taxis
Peterborough City Council,Children's & Education Services - Education,Non-School Funding,Transport,09/12/2011,422282,828,REVENUE,3 Star Ambassador Taxis
Peterborough City Council,Children's & Education Services - Education,Non-School Funding,Transport,09/12/2011,422284,1554,REVENUE,3 Star Ambassador Taxis
Peterborough City Council,Children's & Education Services - Education,Non-School Funding,Transport,09/12/2011,422285,576,REVENUE,3 Star Ambassador Taxis
Peterborough City Council,Children's & Education Services - Education,Non-School Funding,Transport,09/12/2011,422286,1032,REVENUE,A2B Euro Cars
Peterborough City Council,Children's & Education Services - Education,Non-School Funding,Transport,09/12/2011,422290,1382.4,REVENUE,Woodgrange Travel Ltd t/a DiamondCars
Peterborough City Council,Children's & Education Services - Education,Non-School Funding,Transport,09/12/2011,422292,1047.6,REVENUE,Woodgrange Travel Ltd t/a DiamondCars
Peterborough City Council,Children's & Education Services - Education,Non-School Funding,Transport,09/12/2011,422293,998.4,REVENUE,Woodgrange Travel Ltd t/a DiamondCars
Peterborough City Council,Children's & Education Services - Education,Non-School Funding,Transport,09/12/2011,422294,2595,REVENUE,Newborough Coaches Ltd
Peterborough City Council,Children's & Education Services - Education,Non-School Funding,Transport,09/12/2011,422295,2460,REVENUE,Newborough Coaches Ltd
Peterborough City Council,More than one Service Area Category,More than one Service Division,Transport,09/12/2011,422296,3168,REVENUE,Newborough Coaches Ltd
Peterborough City Council,Children's & Education Services - Education,Non-School Funding,Transport,09/12/2011,422297,3336.32,REVENUE,Newborough Coaches Ltd
Peterborough City Council,Children's & Education Services - Education,Non-School Funding,Transport,09/12/2011,422298,3456,REVENUE,Newborough Coaches Ltd
Peterborough City Council,Children's & Education Services - Education,Non-School Funding,Transport,09/12/2011,422299,1555.2,REVENUE,Woodgrange Travel Ltd t/a DiamondCars
Peterborough City Council,Children's & Education Services - Education,Non-School Funding,Transport,09/12/2011,422300,2281.12,REVENUE,Translinc Ltd
Peterborough City Council,Children's & Education Services - Education,Non-School Funding,Transport,09/12/2011,422301,1912.48,REVENUE,Translinc Ltd
Peterborough City Council,Children's & Education Services - Education,Non-School Funding,Transport,09/12/2011,422302,2028.96,REVENUE,Translinc Ltd
Peterborough City Council,Children's & Education Services - Education,Non-School Funding,Transport,09/12/2011,422303,1975.84,REVENUE,Translinc Ltd
Peterborough City Council,Children's & Education Services - Education,Non-School Funding,Transport,09/12/2011,422304,2692.5,REVENUE,Shaws Coaches
Peterborough City Council,More than one Service Area Category,More than one Service Division,More than one Expenses Type,09/12/2011,422311,3064.6,"Mixture of Capital, Revenue and/or Balance Sheet",Rawheat Heating & Plumbing Eng.
Peterborough City Council,Deficit/(Surplus) on Trading Undertakings,Trading Account Surpluses & Deficits,Premises,09/12/2011,422371,2110.2,REVENUE,Milton (Peterborough) Estates Company
Peterborough City Council,Environmental and Regulatory Services,Regulatory services,Supplies and Services,09/12/2011,422406,7800,REVENUE,EETSA Ltd
Peterborough City Council,Children's & Education Services - Children's Social Care,Support Services & Management Costs,Supplies and Services,09/12/2011,422446,4395.2,REVENUE,National Youth Advocacy Serv
Peterborough City Council,Children's & Education Services - Children's Social Care,Other Children's & Families Services,Employees,09/12/2011,422448,1587.6,REVENUE,Swim
Peterborough City Council,Children's & Education Services - Children's Social Care,Other Children's & Families Services,Employees,09/12/2011,422449,1587.6,REVENUE,Swim
Peterborough City Council,Children's & Education Services - Children's Social Care,Other Children's & Families Services,Employees,09/12/2011,422450,1058.4,REVENUE,Swim
Peterborough City Council,Children's & Education Services - Children's Social Care,Support Services & Management Costs,Supplies and Services,09/12/2011,422451,564.09,REVENUE,National Youth Advocacy Serv
Peterborough City Council,Capital,Capital,Capital Pending Update to BS,09/12/2011,422458,1995.53,CAPITAL,McArdle Sport - TEC Ltd
Peterborough City Council,Support Services,Support Services,Premises,09/12/2011,422464,1741.1,REVENUE,Anglian Water
Peterborough City Council,Support Services,Support Services,Premises,09/12/2011,422465,4303.39,REVENUE,Southern Electric
Peterborough City Council,Planning Services,Economic Development,Employees,09/12/2011,422504,843.6,REVENUE,Hays Specialist Recruitment Ltd
Peterborough City Council,Capital,Capital,Capital Pending Update to BS,09/12/2011,422513,3525.04,CAPITAL,Alban Shipping Ltd
Peterborough City Council,Housing Services,Homelessness,Supplies and Services,09/12/2011,422515,550,REVENUE,Rising Properties
Peterborough City Council,Children's & Education Services - Education,Non-School Funding,Supplies and Services,09/12/2011,422519,9123.98,REVENUE,CEFM Ltd
Peterborough City Council,Children's & Education Services - Education,Non-School Funding,Supplies and Services,09/12/2011,422520,9553.43,REVENUE,CEFM Ltd
Peterborough City Council,Children's & Education Services - Education,Non-School Funding,Supplies and Services,09/12/2011,422522,10846.8,REVENUE,PVSL
Peterborough City Council,Capital,Capital,Capital Pending Update to BS,09/12/2011,422605,25000,CAPITAL,Vivacity Culture and Leisure
Peterborough City Council,Cultural and Related Services,Recreation & Sport,Supplies and Services,09/12/2011,422608,2820,REVENUE,Athene Communications
Peterborough City Council,Environmental and Regulatory Services,Environmental Initiatives,Supplies and Services,09/12/2011,422660,855,REVENUE,East of England Showground Services Limited
Peterborough City Council,Capital,Capital,Capital Pending Update to BS,09/12/2011,422711,9852,CAPITAL,Enterprise Managed Services Limited
Peterborough City Council,More than one Service Area Category,More than one Service Division,More than one Expenses Type,09/12/2011,422725,1220.6,REVENUE,Redacted Personal Data
Peterborough City Council,Capital,Capital,Capital Pending Update to BS,09/12/2011,422738,54016.8,CAPITAL,Enterprise Managed Services Limited
Peterborough City Council,Children's & Education Services - Children's Social Care,Other Children's & Families Services,Third Party Payments,09/12/2011,422749,1283.5,REVENUE,Bridgegate Drug Services
Peterborough City Council,Deficit/(Surplus) on Trading Undertakings,Trading Account Surpluses & Deficits,Supplies and Services,09/12/2011,422751,1233.02,REVENUE,Barron Clark Castings Ltd
Peterborough City Council,Deficit/(Surplus) on Trading Undertakings,Trading Account Surpluses & Deficits,Premises,09/12/2011,422757,39283.16,REVENUE,DVS Property Ltd
Peterborough City Council,Planning Services,Economic Development,Premises,09/12/2011,422758,830.87,REVENUE,Centre for Sustainable Engineering
Peterborough City Council,Children's & Education Services - Children's Social Care,Children Looked After,Supplies and Services - Transfer Payments,09/12/2011,422759,-1680.77,REVENUE,Portsmouth City Council
Peterborough City Council,Housing Services,Homelessness,Supplies and Services,09/12/2011,422760,550,REVENUE,Capitol Lettors
Peterborough City Council,Children's & Education Services - Education,Non-School Funding,Premises,09/12/2011,422761,-552.08,REVENUE,Eastern Shires Purchasing Organisation
Peterborough City Council,Children's & Education Services - Children's Social Care,More than one Service Division,Supplies and Services,12/12/2011,401849,2389.2,REVENUE,Buckles Solicitors LLP
Peterborough City Council,Children's & Education Services - Children's Social Care,Other Children's & Families Services,Supplies and Services,12/12/2011,407819,17193,REVENUE,CareWorks (UK) Ltd
Peterborough City Council,Children's & Education Services - Children's Social Care,Other Children's & Families Services,Supplies and Services,12/12/2011,407820,17193,REVENUE,CareWorks (UK) Ltd
Peterborough City Council,Children's & Education Services - Children's Social Care,Other Children's & Families Services,Employees,12/12/2011,415465,1894.99,REVENUE,Sanctuary Personnel Ltd
Peterborough City Council,Children's & Education Services - Children's Social Care,Other Children's & Families Services,Employees,12/12/2011,415746,1894.99,REVENUE,Sanctuary Personnel Ltd
Peterborough City Council,Children's & Education Services - Children's Social Care,Other Children's & Families Services,Employees,12/12/2011,417997,1696.8,REVENUE,Frontline Staffing Ltd
Peterborough City Council,Children's & Education Services - Children's Social Care,Other Children's & Families Services,Employees,12/12/2011,418310,1894.99,REVENUE,Sanctuary Personnel Ltd
Peterborough City Council,Children's & Education Services - Children's Social Care,Other Children's & Families Services,Employees,12/12/2011,418312,1894.99,REVENUE,Sanctuary Personnel Ltd
Peterborough City Council,Children's & Education Services - Children's Social Care,Other Children's & Families Services,Employees,12/12/2011,418314,1894.99,REVENUE,Sanctuary Personnel Ltd
Peterborough City Council,Cultural and Related Services,Waste Collection,Supplies and Services,12/12/2011,418493,10391.48,REVENUE,Waste Recycling Ltd
Peterborough City Council,"Highways, Roads & Transport Services","Environmental, Safety & Routine Maintenance",Supplies and Services,12/12/2011,418498,55690.44,REVENUE,Highways Agency
Peterborough City Council,Cultural and Related Services,Waste Collection,Supplies and Services,12/12/2011,418502,3737.73,REVENUE,Waste Recycling Ltd
Peterborough City Council,Cultural and Related Services,Waste Collection,Supplies and Services,12/12/2011,418508,14904.79,REVENUE,Waste Recycling Ltd
Peterborough City Council,Cultural and Related Services,Waste Collection,Supplies and Services,12/12/2011,418621,11381.81,REVENUE,Waste Recycling Ltd
Peterborough City Council,Cultural and Related Services,Waste Collection,Supplies and Services,12/12/2011,418623,8244,REVENUE,Waste Recycling Ltd
Peterborough City Council,Children's & Education Services - Education,Other School -related Education Functions,Supplies and Services,12/12/2011,418639,6262.5,REVENUE,Redacted Personal Data
Peterborough City Council,Support Services,Support Services,Premises,12/12/2011,418766,6959.26,REVENUE,Baker Perkins Ltd
Peterborough City Council,Capital,Capital,Capital Pending Update to BS,12/12/2011,418771,1602000,CAPITAL,Cross Keys Homes
Peterborough City Council,Children's & Education Services - Children's Social Care,Other Children's & Families Services,Employees,12/12/2011,418775,1658.78,REVENUE,Blue Group International Ltd
Peterborough City Council,Children's & Education Services - Education,Non-School Funding,Supplies and Services,12/12/2011,418784,23352.29,REVENUE,Priors Court School
Peterborough City Council,Children's & Education Services - Children's Social Care,Other Children's & Families Services,Employees,12/12/2011,418983,1554,REVENUE,Blue Group International Ltd
Peterborough City Council,Children's & Education Services - Education,All Schools - apportion across sectors,Supplies and Services,12/12/2011,418985,1058.51,REVENUE,Peterborough Tree Services Ltd
Peterborough City Council,Children's & Education Services - Children's Social Care,Children Looked After,More than one Expenses Type,12/12/2011,418986,11512.84,REVENUE,Lovell's Hall
Peterborough City Council,Housing Services,Private Sector Housing Renewal,Supplies and Services,12/12/2011,419000,1921,REVENUE,Nightingale Services
Peterborough City Council,Children's & Education Services - Children's Social Care,Other Children's & Families Services,Employees,12/12/2011,419014,1596,REVENUE,Medicare First
Peterborough City Council,Children's & Education Services - Education,Non-School Funding,Supplies and Services,12/12/2011,419083,1800,REVENUE,Stonewall Equality Ltd
Peterborough City Council,Capital,Capital,Capital Pending Update to BS,12/12/2011,419102,2940,CAPITAL,CA Traffic Ltd
Peterborough City Council,Children's & Education Services - Children's Social Care,Children Looked After,Supplies and Services,12/12/2011,419115,802.65,REVENUE,XMA Limited
Peterborough City Council,Children's & Education Services - Education,Non-School Funding,Supplies and Services,12/12/2011,419129,10684.05,REVENUE,Hertfordshire County Council
Peterborough City Council,Capital,Capital,Capital Pending Update to BS,12/12/2011,419138,862.67,CAPITAL,Haley Sharpe Design Ltd
Peterborough City Council,Capital,Capital,Capital Pending Update to BS,12/12/2011,419140,3600,CAPITAL,Haley Sharpe Design Ltd
Peterborough City Council,Planning Services,Planning Policy,Supplies and Services,12/12/2011,419204,10326.79,REVENUE,Cambridgeshire County Council
Peterborough City Council,Children's & Education Services - Children's Social Care,Other Children's & Families Services,Employees,12/12/2011,419615,1894.99,REVENUE,Sanctuary Personnel Ltd
Peterborough City Council,Planning Services,Economic Development,Employees,12/12/2011,419626,2019.6,REVENUE,Macdonald & Company
Peterborough City Council,Capital,Capital,Capital Pending Update to BS,12/12/2011,419629,43881.37,CAPITAL,Enterprise Managed Services Limited
Peterborough City Council,Capital,Capital,Capital Pending Update to BS,12/12/2011,419652,1970.4,CAPITAL,Enterprise Managed Services Limited
Peterborough City Council,Capital,Capital,Capital Pending Update to BS,12/12/2011,419728,1188,CAPITAL,Bull & Co Ltd
Peterborough City Council,Capital,Capital,Capital Pending Update to BS,12/12/2011,419745,18000,CAPITAL,LDG Parking Ltd
Peterborough City Council,"Highways, Roads & Transport Services",Street Lighting,Supplies and Services,12/12/2011,419752,723.6,REVENUE,UK Power Networks (operations) Ltd
Peterborough City Council,"Highways, Roads & Transport Services","Transport planning, policy and strategy",Employees,12/12/2011,419845,2715.35,REVENUE,The Synergy Group
Peterborough City Council,"Highways, Roads & Transport Services","Transport planning, policy and strategy",Employees,12/12/2011,419860,1276.99,REVENUE,The Synergy Group
Peterborough City Council,Housing Services,Homelessness,Supplies and Services,12/12/2011,419894,4000,REVENUE,Peterborough Streets
Peterborough City Council,Children's & Education Services - Children's Social Care,Children Looked After,Supplies and Services - Transfer Payments,12/12/2011,419901,16500,REVENUE,Young Options College Ltd
Peterborough City Council,Capital,Capital,Capital Pending Update to BS,12/12/2011,420234,1493.78,CAPITAL,Ringway Infrastructure Services
Peterborough City Council,Children's & Education Services - Children's Social Care,Children Looked After,Supplies and Services - Transfer Payments,12/12/2011,420309,2813.7,REVENUE,Foster Care Associates Ltd FCA
Peterborough City Council,Children's & Education Services - Children's Social Care,Children Looked After,Supplies and Services - Transfer Payments,12/12/2011,420310,2813.7,REVENUE,Foster Care Associates Ltd FCA
Peterborough City Council,Children's & Education Services - Children's Social Care,Children Looked After,Supplies and Services - Transfer Payments,12/12/2011,420311,3441.3,REVENUE,Foster Care Associates Ltd FCA
Peterborough City Council,Children's & Education Services - Children's Social Care,Children Looked After,Supplies and Services - Transfer Payments,12/12/2011,420318,2813.7,REVENUE,Foster Care Associates Ltd FCA
Peterborough City Council,Children's & Education Services - Children's Social Care,Children Looked After,Supplies and Services - Transfer Payments,12/12/2011,420319,3441.3,REVENUE,Foster Care Associates Ltd FCA
Peterborough City Council,Children's & Education Services - Children's Social Care,Children Looked After,Supplies and Services - Transfer Payments,12/12/2011,420332,3441.3,REVENUE,Foster Care Associates Ltd FCA
Peterborough City Council,Children's & Education Services - Children's Social Care,Children Looked After,Supplies and Services - Transfer Payments,12/12/2011,420334,2813.7,REVENUE,Foster Care Associates Ltd FCA
Peterborough City Council,Deficit/(Surplus) on Trading Undertakings,Trading Account Surpluses & Deficits,Supplies and Services,12/12/2011,420418,3109.64,REVENUE,RMS Engineers LTD
Peterborough City Council,Children's & Education Services - Children's Social Care,Children Looked After,Supplies and Services - Transfer Payments,12/12/2011,420428,5071.5,REVENUE,Foster Care Associates Ltd FCA
Peterborough City Council,Children's & Education Services - Children's Social Care,Children Looked After,Supplies and Services - Transfer Payments,12/12/2011,420438,3441.3,REVENUE,Foster Care Associates Ltd FCA
Peterborough City Council,Children's & Education Services - Children's Social Care,Children Looked After,Supplies and Services - Transfer Payments,12/12/2011,420459,2813.7,REVENUE,Foster Care Associates Ltd FCA
Peterborough City Council,Children's & Education Services - Children's Social Care,Children Looked After,Supplies and Services - Transfer Payments,12/12/2011,420479,3441.3,REVENUE,Foster Care Associates Ltd FCA
Peterborough City Council,Children's & Education Services - Children's Social Care,Children Looked After,Supplies and Services - Transfer Payments,12/12/2011,420481,3441.3,REVENUE,Foster Care Associates Ltd FCA
Peterborough City Council,Children's & Education Services - Children's Social Care,Children Looked After,Supplies and Services - Transfer Payments,12/12/2011,420518,3441.3,REVENUE,Foster Care Associates Ltd FCA
Peterborough City Council,Children's & Education Services - Children's Social Care,Children Looked After,Supplies and Services - Transfer Payments,12/12/2011,420520,2813.7,REVENUE,Foster Care Associates Ltd FCA
Peterborough City Council,Children's & Education Services - Children's Social Care,Children Looked After,Supplies and Services - Transfer Payments,12/12/2011,420521,3441.3,REVENUE,Foster Care Associates Ltd FCA
Peterborough City Council,Planning Services,Economic Development,Employees,12/12/2011,420846,676.66,REVENUE,Redacted Personal Data
Peterborough City Council,"Highways, Roads & Transport Services",Public Transport,Supplies and Services,12/12/2011,421462,9606.97,REVENUE,National Express Ltd
Peterborough City Council,Support Services,Support Services,Supplies and Services,12/12/2011,421474,9289,REVENUE,Criminal Records Bureau
Peterborough City Council,Children's & Education Services - Children's Social Care,Support Services & Management Costs,Supplies and Services,12/12/2011,422257,1000.11,REVENUE,Beech Clinic
Peterborough City Council,More than one Service Area Category,More than one Service Division,More than one Expenses Type,12/12/2011,422259,2800,REVENUE,The Peterborough School Ltd
Peterborough City Council,Children's & Education Services - Children's Social Care,Youth Justice,Premises,12/12/2011,422656,1149.6,REVENUE,Cording Asset Manage. LLP Client A/C
Peterborough City Council,Children's & Education Services - Children's Social Care,Youth Justice,Premises,12/12/2011,422658,1149.6,REVENUE,Cording Asset Manage. LLP Client A/C
Peterborough City Council,Children's & Education Services - Education,Non-School Funding,Transport,12/12/2011,422825,1365,REVENUE,Goldstar Cabs Ltd
Peterborough City Council,Children's & Education Services - Education,Non-School Funding,Transport,12/12/2011,422826,2382.6,REVENUE,Goldstar Cabs Ltd
Peterborough City Council,Children's & Education Services - Education,Non-School Funding,Transport,12/12/2011,422827,1694.88,REVENUE,Goldstar Cabs Ltd
Peterborough City Council,Children's & Education Services - Education,Non-School Funding,Transport,12/12/2011,422828,1892.1,REVENUE,Goldstar Cabs Ltd
Peterborough City Council,Children's & Education Services - Education,Non-School Funding,Transport,12/12/2011,422829,1386,REVENUE,Goldstar Cabs Ltd
Peterborough City Council,Children's & Education Services - Education,Non-School Funding,Transport,12/12/2011,422830,790.5,REVENUE,Goldstar Cabs Ltd
Peterborough City Council,Children's & Education Services - Education,Non-School Funding,Transport,12/12/2011,422831,1759.5,REVENUE,Goldstar Cabs Ltd
Peterborough City Council,Children's & Education Services - Education,Non-School Funding,Transport,12/12/2011,422833,2032.8,REVENUE,Goldstar Cabs Ltd
Peterborough City Council,Children's & Education Services - Education,Non-School Funding,Transport,12/12/2011,422834,1499.52,REVENUE,Goldstar Cabs Ltd
Peterborough City Council,Children's & Education Services - Education,Non-School Funding,Transport,12/12/2011,422836,1839.6,REVENUE,Goldstar Cabs Ltd
Peterborough City Council,More than one Service Area Category,More than one Service Division,Transport,12/12/2011,422838,1363.8,REVENUE,Goldstar Cabs Ltd
Peterborough City Council,More than one Service Area Category,More than one Service Division,Transport,12/12/2011,422839,1666.2,REVENUE,Goldstar Cabs Ltd
Peterborough City Council,Children's & Education Services - Education,Non-School Funding,Transport,12/12/2011,422840,950.4,REVENUE,Goldstar Cabs Ltd
Peterborough City Council,Children's & Education Services - Education,Non-School Funding,Transport,12/12/2011,422841,1785,REVENUE,Goldstar Cabs Ltd
Peterborough City Council,Planning Services,Economic Development,Premises,12/12/2011,422848,3367.2,REVENUE,Centre for Sustainable Engineering
Peterborough City Council,Children's & Education Services - Children's Social Care,Family Support Services,More than one Expenses Type,12/12/2011,422861,1417.82,REVENUE,Cherry Lodge
Peterborough City Council,Children's & Education Services - Children's Social Care,Youth Justice,Supplies and Services,12/12/2011,422862,777.6,REVENUE,BlueChip Technologies Ltd
Peterborough City Council,Children's & Education Services - Children's Social Care,Children Looked After,More than one Expenses Type,12/12/2011,422867,644.86,REVENUE,Clare Lodge Secure Unit
Peterborough City Council,Children's & Education Services - Children's Social Care,More than one Service Division,More than one Expenses Type,12/12/2011,422868,585.36,REVENUE,Clare Lodge Secure Unit
Peterborough City Council,Children's & Education Services - Children's Social Care,Children Looked After,More than one Expenses Type,12/12/2011,422869,1969.75,REVENUE,Clare Lodge Secure Unit
Peterborough City Council,Children's & Education Services - Education,Secondary,Premises,12/12/2011,422883,1259.74,REVENUE,Anglian Water
Peterborough City Council,Children's & Education Services - Education,Non-School Funding,Transport,12/12/2011,422968,1629.3,REVENUE,Goldstar Cabs Ltd
Peterborough City Council,Support Services,Support Services,Premises,14/12/2011,394410,1186.56,REVENUE,Viridor Waste Kent Ltd
Peterborough City Council,Deficit/(Surplus) on Trading Undertakings,Trading Account Surpluses & Deficits,Supplies and Services,14/12/2011,396934,2178.48,REVENUE,Rowes Precision Products Ltd
Peterborough City Council,Children's & Education Services - Children's Social Care,Family Support Services,Employees,14/12/2011,411569,642,REVENUE,PAM Recruitment Ltd
Peterborough City Council,Central Services to the Public,Local Tax,Supplies and Services,14/12/2011,413531,1749.12,REVENUE,Wilkin Chapman
Peterborough City Council,Housing Services,Homelessness,Supplies and Services,14/12/2011,414902,786.1,REVENUE,DA Rosalia Hotel
Peterborough City Council,Children's & Education Services - Children's Social Care,Children Looked After,Supplies and Services - Transfer Payments,14/12/2011,414972,5256,REVENUE,Archway Care Ltd
Peterborough City Council,Support Services,Support Services,Supplies and Services,14/12/2011,415858,736.8,REVENUE,Serco Ltd
Peterborough City Council,Children's & Education Services - Children's Social Care,Support Services & Management Costs,Employees,14/12/2011,418526,3996,REVENUE,Compass Career Opportunities Ltd
Peterborough City Council,Children's & Education Services - Children's Social Care,Other Children's & Families Services,Third Party Payments,14/12/2011,418635,43725.25,REVENUE,YMCA Cambridge & Peterborough
Peterborough City Council,Support Services,Support Services,Employees,14/12/2011,418829,514.68,REVENUE,Venn Group Ltd
Peterborough City Council,Support Services,Support Services,Employees,14/12/2011,418833,1326.67,REVENUE,Venn Group Ltd
Peterborough City Council,Cultural and Related Services,Waste Collection,Supplies and Services,14/12/2011,418835,9125.45,REVENUE,H W Martin Waste Ltd
Peterborough City Council,"Highways, Roads & Transport Services","Environmental, Safety & Routine Maintenance",Supplies and Services,14/12/2011,418836,693.67,REVENUE,Telent Technology Services Ltd
Peterborough City Council,"Highways, Roads & Transport Services",Traffic management & Road Safety,Supplies and Services,14/12/2011,418938,4200,REVENUE,Tiny Giants Productions Ltd
Peterborough City Council,"Highways, Roads & Transport Services",Traffic management & Road Safety,Supplies and Services,14/12/2011,418939,4200,REVENUE,Tiny Giants Productions Ltd
Peterborough City Council,Children's & Education Services - Education,Non-School Funding,Supplies and Services,14/12/2011,419001,18588,REVENUE,I CAN Charity
Peterborough City Council,Children's & Education Services - Children's Social Care,Children Looked After,Employees,14/12/2011,419013,960,REVENUE,Ace Tones Music Ltd
Peterborough City Council,Planning Services,Economic Development,Employees,14/12/2011,419035,1873.49,REVENUE,The Synergy Group
Peterborough City Council,Planning Services,Economic Development,Employees,14/12/2011,419036,1229.3,REVENUE,The Synergy Group
Peterborough City Council,Planning Services,Economic Development,Employees,14/12/2011,419037,1337.77,REVENUE,The Synergy Group
Peterborough City Council,Planning Services,Economic Development,Employees,14/12/2011,419038,1262.57,REVENUE,The Synergy Group
Peterborough City Council,Housing Services,Housing Benefits,Employees,14/12/2011,419039,1154.88,REVENUE,The Synergy Group
Peterborough City Council,"Highways, Roads & Transport Services","Transport planning, policy and strategy",Employees,14/12/2011,419040,1209.05,REVENUE,The Synergy Group
Peterborough City Council,Planning Services,Economic Development,Employees,14/12/2011,419041,1870.02,REVENUE,The Synergy Group
Peterborough City Council,Housing Services,Housing Benefits,Employees,14/12/2011,419044,1169.32,REVENUE,The Synergy Group
Peterborough City Council,Housing Services,Housing Benefits,Employees,14/12/2011,419045,1215,REVENUE,The Synergy Group
Peterborough City Council,Housing Services,Housing Benefits,Employees,14/12/2011,419046,1248.72,REVENUE,The Synergy Group
Peterborough City Council,Central Services to the Public,Local Tax,Employees,14/12/2011,419049,1843.2,REVENUE,The Synergy Group
Peterborough City Council,Central Services to the Public,Local Tax,Employees,14/12/2011,419050,1766.4,REVENUE,The Synergy Group
Peterborough City Council,Children's & Education Services - Children's Social Care,Support Services & Management Costs,Employees,14/12/2011,419055,1405.15,REVENUE,Randstad Care Ltd
Peterborough City Council,Children's & Education Services - Children's Social Care,Children Looked After,Employees,14/12/2011,419059,594.95,REVENUE,Randstad Care Ltd
Peterborough City Council,Children's & Education Services - Children's Social Care,Other Children's & Families Services,Employees,14/12/2011,419062,3041.14,REVENUE,Randstad Care Ltd
Peterborough City Council,Children's & Education Services - Children's Social Care,Other Children's & Families Services,Employees,14/12/2011,419063,2314.26,REVENUE,Randstad Care Ltd
Peterborough City Council,Children's & Education Services - Children's Social Care,Children Looked After,Employees,14/12/2011,419066,773.95,REVENUE,Randstad Care Ltd
Peterborough City Council,Children's & Education Services - Children's Social Care,Children Looked After,Employees,14/12/2011,419070,742.37,REVENUE,Randstad Care Ltd
Peterborough City Council,Children's & Education Services - Children's Social Care,Children Looked After,Employees,14/12/2011,419071,1465.2,REVENUE,Frontline Staffing Ltd
Peterborough City Council,Capital,Capital,Capital Pending Update to BS,14/12/2011,419089,919.03,CAPITAL,Barker Storey Matthews
Peterborough City Council,Children's & Education Services - Children's Social Care,Support Services & Management Costs,Employees,14/12/2011,419100,1614.06,REVENUE,Service Care Solutions Ltd
Peterborough City Council,Children's & Education Services - Children's Social Care,Children Looked After,Employees,14/12/2011,419112,532.16,REVENUE,Advantage Healthcare Nursing & Care Ltd
Peterborough City Council,Environmental and Regulatory Services,Regulatory services,Supplies and Services,14/12/2011,419136,3256.5,REVENUE,Humber Authorities Calibration Serv
Peterborough City Council,More than one Service Area Category,More than one Service Division,Supplies and Services,14/12/2011,419137,12167.42,REVENUE,Loomis UK Ltd
Peterborough City Council,Capital,Capital,Capital Pending Update to BS,14/12/2011,419145,7559.39,CAPITAL,Queensbury Shelters Ltd
Peterborough City Council,Children's & Education Services - Education,Non-School Funding,Transport,14/12/2011,419149,3440.1,REVENUE,West Berkshire Council
Peterborough City Council,Capital,Capital,Capital Pending Update to BS,14/12/2011,419611,44157.68,CAPITAL,L Garfield (Builders) Ltd
Peterborough City Council,Support Services,Support Services,Supplies and Services,14/12/2011,419612,666,REVENUE,Key People Ltd
Peterborough City Council,Children's & Education Services - Children's Social Care,Family Support Services,Supplies and Services,14/12/2011,419643,737.72,REVENUE,Konica Minolta Bus.Sol. East Ltd
Peterborough City Council,"Highways, Roads & Transport Services","Transport planning, policy and strategy",Supplies and Services,14/12/2011,419681,1305.6,REVENUE,Siemens Plc
Peterborough City Council,Children's & Education Services - Children's Social Care,Family Support Services,Third Party Payments,14/12/2011,419682,9000,REVENUE,Cambs & P'boro NHS Foundation Trust
Peterborough City Council,Children's & Education Services - Education,Other School -related Education Functions,Supplies and Services,14/12/2011,419684,5297,REVENUE,Redacted Personal Data
Peterborough City Council,"Highways, Roads & Transport Services",Regulatory services,Supplies and Services,14/12/2011,419709,1144.27,REVENUE,VIP-System Ltd
Peterborough City Council,Deficit/(Surplus) on Trading Undertakings,Trading Account Surpluses & Deficits,Premises,14/12/2011,419711,2394,REVENUE,Atkins Limited
Peterborough City Council,Children's & Education Services - Education,All Schools - apportion across sectors,Supplies and Services,14/12/2011,419719,696,REVENUE,Peterborough Tree Services Ltd
Peterborough City Council,Environmental and Regulatory Services,Regulatory services,Supplies and Services,14/12/2011,419729,2198.4,REVENUE,Canford Audio Plc
Peterborough City Council,"Highways, Roads & Transport Services",Public Transport,Supplies and Services,14/12/2011,419781,15000,REVENUE,First Eastern Counties Buses Ltd
Peterborough City Council,Capital,Capital,Capital Pending Update to BS,14/12/2011,419838,2574,CAPITAL,Spacemaster Partitions Ltd
Peterborough City Council,Support Services,Support Services,Supplies and Services,14/12/2011,419888,614.4,REVENUE,E S P Magazine
Peterborough City Council,Support Services,Support Services,Third Party Payments,14/12/2011,419891,503007.3,REVENUE,Serco Ltd
Peterborough City Council,Support Services,Support Services,More than one Expenses Type,14/12/2011,419904,29199.49,REVENUE,NB Real Estate
Peterborough City Council,Support Services,Support Services,Premises,14/12/2011,419906,36805.79,REVENUE,NB Real Estate
Peterborough City Council,Support Services,Support Services,Premises,14/12/2011,419907,35765.05,REVENUE,NB Real Estate
Peterborough City Council,Children's & Education Services - Education,Primary,Supplies and Services,14/12/2011,419913,8575,REVENUE,Redacted Personal Data
Peterborough City Council,Capital,Capital,Capital Pending Update to BS,14/12/2011,419981,4194,CAPITAL,Atkins Limited
Peterborough City Council,Children's & Education Services - Children's Social Care,Other Children's & Families Services,Employees,14/12/2011,419993,9899.7,REVENUE,"Lock, Mr Ron"
Peterborough City Council,Support Services,Support Services & Management Costs,Employees,14/12/2011,420010,2465,REVENUE,The College of Estate Management
Peterborough City Council,Planning Services,Economic Development,Premises,14/12/2011,420027,770.64,REVENUE,Equinox (Peterborough) Ltd
Peterborough City Council,Capital,Capital,Capital Pending Update to BS,14/12/2011,420133,1006.56,CAPITAL,Imperial Civil Enforcement Solutions
Peterborough City Council,Housing Services,Homelessness,Supplies and Services,14/12/2011,420141,571.2,REVENUE,DA Rosalia Hotel
Peterborough City Council,Children's & Education Services - Children's Social Care,Other Children's & Families Services,Employees,14/12/2011,420489,937.94,REVENUE,Capita Resourcing Ltd
Peterborough City Council,Children's & Education Services - Children's Social Care,Other Children's & Families Services,Employees,14/12/2011,420491,1136.34,REVENUE,Capita Resourcing Ltd
Peterborough City Council,Children's & Education Services - Children's Social Care,Other Children's & Families Services,Employees,14/12/2011,420493,908.12,REVENUE,Capita Resourcing Ltd
Peterborough City Council,Cultural and Related Services,Culture & Heritage,Supplies and Services,14/12/2011,420871,600,REVENUE,Industry Music Group
Peterborough City Council,Children's & Education Services - Education,Secondary,Employees,14/12/2011,420929,10812,REVENUE,Mana Resourcing Ltd
Peterborough City Council,Children's & Education Services - Education,Non-School Funding,Employees,14/12/2011,420932,555,REVENUE,Mana Resourcing Ltd
Peterborough City Council,Children's & Education Services - Education,Non-School Funding,Employees,14/12/2011,420933,954,REVENUE,Mana Resourcing Ltd
Peterborough City Council,Children's & Education Services - Education,Non-School Funding,Employees,14/12/2011,420934,1144.8,REVENUE,Mana Resourcing Ltd
Peterborough City Council,Housing Services,Private Sector Housing Renewal,Supplies and Services,14/12/2011,420973,646,REVENUE,Fletton Electrics Ltd
Peterborough City Council,Drainage and Flood Levies,Precepts & Levies,Premises,14/12/2011,421158,36601.25,REVENUE,Environment Agency
Peterborough City Council,More than one Service Area Category,More than one Service Division,Supplies and Services,14/12/2011,421259,1390.69,REVENUE,TNT Post Midlands Ltd
Peterborough City Council,More than one Service Area Category,More than one Service Division,Supplies and Services,14/12/2011,421278,1572.57,REVENUE,TNT Post Midlands Ltd
Peterborough City Council,More than one Service Area Category,More than one Service Division,Balance Sheet,14/12/2011,421368,714.68,Balance Sheet,Rossendales C B Ltd
Peterborough City Council,More than one Service Area Category,More than one Service Division,More than one Expenses Type,14/12/2011,421399,218809.16,"Mixture of Capital, Revenue and/or Balance Sheet",Ringway Infrastructure Services
Peterborough City Council,Support Services,Support Services,Supplies and Services,14/12/2011,421471,-736.8,REVENUE,Serco Ltd
Peterborough City Council,Central Services to the Public,Local Tax,Employees,14/12/2011,421485,1304.64,REVENUE,The Synergy Group
Peterborough City Council,Planning Services,Community Development,Supplies and Services,14/12/2011,421915,500,REVENUE,Glinton Friendship Club
Peterborough City Council,More than one Service Area Category,More than one Service Division,More than one Expenses Type,14/12/2011,421934,7591,"Mixture of Capital, Revenue and/or Balance Sheet",Allworks Home Improvements Ltd
Peterborough City Council,Planning Services,Economic Development,Third Party Payments,14/12/2011,421987,700,REVENUE,Barnack Community Association
Peterborough City Council,More than one Service Area Category,More than one Service Division,Balance Sheet,14/12/2011,422089,2000,Balance Sheet,Rapid Solicitors
Peterborough City Council,Children's & Education Services - Education,Secondary,Premises,14/12/2011,422091,5749.95,REVENUE,Npower Ltd
Peterborough City Council,Children's & Education Services - Education,Non-School Funding,Employees,14/12/2011,422093,1016.4,REVENUE,Haymarket Media Group
Peterborough City Council,Children's & Education Services - Children's Social Care,Youth Justice,Premises,14/12/2011,422151,1800,REVENUE,Addleshaw Goddard Solicitors
Peterborough City Council,Children's & Education Services - Children's Social Care,Support Services & Management Costs,Supplies and Services,14/12/2011,422250,700,REVENUE,HM Courts and Tribunals Service (HMCTS)
Peterborough City Council,Children's & Education Services - Children's Social Care,Support Services & Management Costs,Supplies and Services,14/12/2011,422252,1900,REVENUE,HM Courts and Tribunals Service (HMCTS)
Peterborough City Council,Children's & Education Services - Children's Social Care,Support Services & Management Costs,Supplies and Services,14/12/2011,422254,1900,REVENUE,HM Courts and Tribunals Service (HMCTS)
Peterborough City Council,Children's & Education Services - Children's Social Care,Family Support Services,Employees,14/12/2011,422452,726.3,REVENUE,PAM Recruitment Ltd
Peterborough City Council,Children's & Education Services - Children's Social Care,Family Support Services,Employees,14/12/2011,422453,725.76,REVENUE,PAM Recruitment Ltd
Peterborough City Council,Children's & Education Services - Children's Social Care,Family Support Services,Employees,14/12/2011,422455,726.3,REVENUE,PAM Recruitment Ltd
Peterborough City Council,Children's & Education Services - Children's Social Care,Family Support Services,Employees,14/12/2011,422456,1044.18,REVENUE,PAM Recruitment Ltd
Peterborough City Council,Children's & Education Services - Children's Social Care,Family Support Services,Employees,14/12/2011,422457,1046.34,REVENUE,PAM Recruitment Ltd
Peterborough City Council,Children's & Education Services - Education,Secondary,Employees,14/12/2011,422467,30000,REVENUE,Opportunity Peterborough
Peterborough City Council,Support Services,Support Services,Third Party Payments,14/12/2011,422559,965651.94,REVENUE,Serco Ltd
Peterborough City Council,Capital,Capital,Capital Pending Update to BS,14/12/2011,422572,1677592.8,CAPITAL,Kier Eastern
Peterborough City Council,Children's & Education Services - Children's Social Care,Other Children's & Families Services,Third Party Payments,14/12/2011,422639,15000,REVENUE,Family Action
Peterborough City Council,Support Services,Support Services,Employees,14/12/2011,422647,557.17,REVENUE,Reed Specialist Recruitment
Peterborough City Council,More than one Service Area Category,More than one Service Division,Transport,14/12/2011,422718,869.4,REVENUE,R T Enterprises Ltd T/A Royal Taxis
Peterborough City Council,Capital,Capital,Capital Pending Update to BS,14/12/2011,422865,5070,CAPITAL,Bull & Co Ltd
Peterborough City Council,More than one Service Area Category,More than one Service Division,Balance Sheet,14/12/2011,422880,1026.46,Balance Sheet,Buckles Solicitors LLP
Peterborough City Council,Planning Services,Community Development,Supplies and Services,14/12/2011,422905,575,REVENUE,Office of the Immigration Serv Comm
Peterborough City Council,Children's & Education Services - Education,Non-School Funding,Transport,14/12/2011,422941,842.5,REVENUE,Aardvark Coaches
Peterborough City Council,Children's & Education Services - Education,Non-School Funding,Transport,14/12/2011,422942,722.5,REVENUE,Aardvark Coaches
Peterborough City Council,Children's & Education Services - Education,Non-School Funding,Transport,14/12/2011,422943,730,REVENUE,Aardvark Coaches
Peterborough City Council,Children's & Education Services - Education,Non-School Funding,Transport,14/12/2011,422944,822.5,REVENUE,Aardvark Coaches
Peterborough City Council,Children's & Education Services - Education,Non-School Funding,Transport,14/12/2011,422945,865,REVENUE,Aardvark Coaches
Peterborough City Council,Support Services,Support Services,Premises,14/12/2011,423021,49637.6,REVENUE,Southern Electric
Peterborough City Council,Children's & Education Services - Children's Social Care,Other Children's & Families Services,Supplies and Services,14/12/2011,423022,2584.4,REVENUE,R S P LTD
Peterborough City Council,Children's & Education Services - Children's Social Care,Other Children's & Families Services,Supplies and Services,14/12/2011,423023,2839.35,REVENUE,R S P LTD
Peterborough City Council,Children's & Education Services - Children's Social Care,Other Children's & Families Services,Third Party Payments,14/12/2011,423062,11445.44,REVENUE,Family Action
Peterborough City Council,More than one Service Area Category,More than one Service Division,More than one Expenses Type,14/12/2011,423068,2976,"Mixture of Capital, Revenue and/or Balance Sheet","Prosser, Mr Wayne"
Peterborough City Council,More than one Service Area Category,More than one Service Division,More than one Expenses Type,14/12/2011,423070,2646,"Mixture of Capital, Revenue and/or Balance Sheet",Total Hygiene Ltd
Peterborough City Council,More than one Service Area Category,More than one Service Division,More than one Expenses Type,14/12/2011,423078,6080,"Mixture of Capital, Revenue and/or Balance Sheet",EMS Stairlifts
Peterborough City Council,More than one Service Area Category,More than one Service Division,Balance Sheet,14/12/2011,423079,3176.96,Balance Sheet,Cambridgeshire County Council
Peterborough City Council,More than one Service Area Category,More than one Service Division,Balance Sheet,14/12/2011,423080,619057.43,Balance Sheet,Cambridgeshire County Council
Peterborough City Council,More than one Service Area Category,More than one Service Division,Balance Sheet,14/12/2011,423082,1027.14,Balance Sheet,Cambridgeshire County Council
Peterborough City Council,More than one Service Area Category,More than one Service Division,More than one Expenses Type,14/12/2011,423083,2585,"Mixture of Capital, Revenue and/or Balance Sheet",Heating & Plumbing Services
Peterborough City Council,More than one Service Area Category,More than one Service Division,Balance Sheet,14/12/2011,423084,231468.64,Balance Sheet,Cambridgeshire County Council
Peterborough City Council,More than one Service Area Category,More than one Service Division,More than one Expenses Type,14/12/2011,423085,3905,"Mixture of Capital, Revenue and/or Balance Sheet",Ransome Engineering Services Ltd
Peterborough City Council,More than one Service Area Category,More than one Service Division,More than one Expenses Type,14/12/2011,423089,705,"Mixture of Capital, Revenue and/or Balance Sheet",Dolphin Mobility East Midlands Ltd
Peterborough City Council,More than one Service Area Category,More than one Service Division,More than one Expenses Type,14/12/2011,423091,2130,"Mixture of Capital, Revenue and/or Balance Sheet",Dolphin Mobility East Midlands Ltd
Peterborough City Council,More than one Service Area Category,More than one Service Division,More than one Expenses Type,14/12/2011,423095,5125.2,"Mixture of Capital, Revenue and/or Balance Sheet",Optimum Plumbing & Heating Ltd
Peterborough City Council,More than one Service Area Category,More than one Service Division,More than one Expenses Type,14/12/2011,423099,4444,"Mixture of Capital, Revenue and/or Balance Sheet",S R K Engineering
Peterborough City Council,More than one Service Area Category,More than one Service Division,More than one Expenses Type,14/12/2011,423100,3159.63,"Mixture of Capital, Revenue and/or Balance Sheet",Obam Domestic Lift Services Ltd
Peterborough City Council,More than one Service Area Category,More than one Service Division,More than one Expenses Type,14/12/2011,423101,3731.36,"Mixture of Capital, Revenue and/or Balance Sheet",T G Development Ltd
Peterborough City Council,Children's & Education Services - Education,Non-School Funding,Supplies and Services,14/12/2011,423163,842,REVENUE,Redacted Personal Data
Peterborough City Council,Support Services,Support Services,Premises,14/12/2011,423166,1250,REVENUE,Redacted Personal Data
Peterborough City Council,Children's & Education Services - Education,Non-School Funding,Supplies and Services,14/12/2011,423167,816,REVENUE,Parnwell Family Project Playgroup
Peterborough City Council,Children's & Education Services - Education,Non-School Funding,Supplies and Services,14/12/2011,423169,504,REVENUE,Dogsthorpe Community Pre-School
Peterborough City Council,Children's & Education Services - Education,Non-School Funding,Supplies and Services,14/12/2011,423190,792,REVENUE,Brookside Playgroup
Peterborough City Council,Planning Services,Community Development,Premises,14/12/2011,423199,1939.14,REVENUE,Princebuild Limited
Peterborough City Council,Capital,Capital,Capital Pending Update to BS,14/12/2011,423200,900,CAPITAL,Fenland Leisure Products Ltd
Peterborough City Council,Environmental and Regulatory Services,Agriculture,Premises,14/12/2011,423201,8585.05,REVENUE,T Clarke East Limited
Peterborough City Council,More than one Service Area Category,More than one Service Division,Balance Sheet,14/12/2011,423203,4521.85,Balance Sheet,HM Revenues & Customs
Peterborough City Council,More than one Service Area Category,More than one Service Division,Balance Sheet,14/12/2011,423204,7291.67,Balance Sheet,HM Revenues & Customs
Peterborough City Council,More than one Service Area Category,More than one Service Division,Balance Sheet,14/12/2011,423205,12886.55,Balance Sheet,HM Revenues & Customs
Peterborough City Council,More than one Service Area Category,More than one Service Division,Balance Sheet,14/12/2011,423206,118604.08,Balance Sheet,HM Revenues & Customs
Peterborough City Council,More than one Service Area Category,More than one Service Division,Balance Sheet,14/12/2011,423207,1467256.25,Balance Sheet,HM Revenues & Customs
Peterborough City Council,Children's & Education Services - Education,Non-School Funding,Supplies and Services,14/12/2011,423211,840,REVENUE,Peterborough United Football Club
Peterborough City Council,Children's & Education Services - Education,Non-School Funding,Supplies and Services,14/12/2011,423214,792,REVENUE,Brookside Playgroup
Peterborough City Council,Children's & Education Services - Education,Non-School Funding,Supplies and Services,14/12/2011,423216,840,REVENUE,Orton Longueville Playgroup
Peterborough City Council,Children's & Education Services - Education,Non-School Funding,Supplies and Services,14/12/2011,423237,840,REVENUE,Orton Longueville Playgroup
Peterborough City Council,Children's & Education Services - Children's Social Care,Children Looked After,Transport,14/12/2011,423238,1576.1,REVENUE,Redacted Personal Data
Peterborough City Council,Children's & Education Services - Education,Non-School Funding,Supplies and Services,14/12/2011,423239,840,REVENUE,Orton Longueville Playgroup
Peterborough City Council,Children's & Education Services - Education,Non-School Funding,Supplies and Services,14/12/2011,423240,840,REVENUE,PSLA
Peterborough City Council,Support Services,Support Services,Premises,14/12/2011,423241,915.47,REVENUE,Eastern Shires Purchasing Organisation
Peterborough City Council,Children's & Education Services - Education,Non-School Funding,Supplies and Services,14/12/2011,423242,560,REVENUE,Westwood & Ravensthorpe Children's Centre
Peterborough City Council,Support Services,Support Services,Supplies and Services,14/12/2011,423279,567.6,REVENUE,Data Interchange
Peterborough City Council,More than one Service Area Category,More than one Service Division,Balance Sheet,14/12/2011,423284,8142.32,Balance Sheet,Redacted Personal Data
Peterborough City Council,Planning Services,Economic Development,Third Party Payments,14/12/2011,423324,29400,REVENUE,Peterborough Citizens Advice Bureau
Peterborough City Council,Children's & Education Services - Children's Social Care,Children Looked After,Supplies and Services - Transfer Payments,14/12/2011,423348,865.12,REVENUE,IAS TACT
Peterborough City Council,Children's & Education Services - Children's Social Care,Family Support Services,Premises,14/12/2011,423372,548.55,REVENUE,Chemdry Central
Peterborough City Council,Capital,Capital,Capital Pending Update to BS,14/12/2011,423418,55260.12,CAPITAL,Benchmark Contracts Ltd
Peterborough City Council,Children's & Education Services - Children's Social Care,Children Looked After,Supplies and Services - Transfer Payments,16/12/2011,398474,14632,REVENUE,New College Worcester
Peterborough City Council,"Highways, Roads & Transport Services","Transport planning, policy and strategy",Supplies and Services,16/12/2011,402846,646.8,REVENUE,Johnston Press Midlands Division
Peterborough City Council,Planning Services,Economic Development,Employees,16/12/2011,410705,1332,REVENUE,Hays Specialist Recruitment Ltd
Peterborough City Council,Children's & Education Services - Children's Social Care,Other Children's & Families Services,Employees,16/12/2011,419018,1459.68,REVENUE,Medicare First
Peterborough City Council,Children's & Education Services - Children's Social Care,Other Children's & Families Services,Employees,16/12/2011,419053,1154.26,REVENUE,Randstad Care Ltd
Peterborough City Council,"Highways, Roads & Transport Services",Public Transport,Premises,16/12/2011,420855,1972.36,REVENUE,Jones Lang LaSalle
Peterborough City Council,More than one Service Area Category,More than one Service Division,Balance Sheet,16/12/2011,422988,5962.32,Balance Sheet,IIC by Education (P'boro) Ltd
Peterborough City Council,Planning Services,Community Development,Supplies and Services,16/12/2011,423112,1500,REVENUE,Botolph Green Residents Assoc
Peterborough City Council,Planning Services,Community Development,Supplies and Services,16/12/2011,423113,1000,REVENUE,Barnack Parish Council
Peterborough City Council,Planning Services,Community Development,Supplies and Services,16/12/2011,423114,1015,REVENUE,Barnack Parish Council
Peterborough City Council,Planning Services,Community Development,Supplies and Services,16/12/2011,423115,900,REVENUE,Vivacity Culture and Leisure
Peterborough City Council,Planning Services,Community Development,Supplies and Services,16/12/2011,423116,800,REVENUE,Honeyhill Drama Group
Peterborough City Council,"Cultural, Environmental and Planning Services",Waste Collection,Third Party Payments,16/12/2011,423251,82847.88,REVENUE,SSI Schaefer Ltd
Peterborough City Council,More than one Service Area Category,More than one Service Division,Balance Sheet,16/12/2011,423399,15500,Balance Sheet,Zurich Insurance Company
Peterborough City Council,"Highways, Roads & Transport Services",Parking Services,Supplies and Services,16/12/2011,423420,6152.87,REVENUE,Metric Group Ltd
Peterborough City Council,Children's & Education Services - Children's Social Care,Other Children's & Families Services,Third Party Payments,16/12/2011,423480,2000,REVENUE,Bridgegate Drug Services
Peterborough City Council,Support Services,Support Services,Employees,16/12/2011,423499,5404.64,REVENUE,TMP (UK) LTD
Peterborough City Council,Support Services,Support Services,Employees,16/12/2011,423500,12292.22,REVENUE,TMP (UK) LTD
Peterborough City Council,Support Services,Support Services,Employees,16/12/2011,423501,918.54,REVENUE,TMP (UK) LTD
Peterborough City Council,Deficit/(Surplus) on Trading Undertakings,Trading Account Surpluses & Deficits,Supplies and Services,16/12/2011,423671,811.2,REVENUE,Barron Clark Castings Ltd
Peterborough City Council,Deficit/(Surplus) on Trading Undertakings,Trading Account Surpluses & Deficits,Supplies and Services,16/12/2011,423677,662.4,REVENUE,Barron Clark Castings Ltd
Peterborough City Council,Deficit/(Surplus) on Trading Undertakings,Trading Account Surpluses & Deficits,Supplies and Services,16/12/2011,423686,761.76,REVENUE,Barron Clark Castings Ltd
Peterborough City Council,Deficit/(Surplus) on Trading Undertakings,Trading Account Surpluses & Deficits,Supplies and Services,16/12/2011,423687,684,REVENUE,Barron Clark Castings Ltd
Peterborough City Council,Deficit/(Surplus) on Trading Undertakings,Trading Account Surpluses & Deficits,Supplies and Services,16/12/2011,423690,2003.66,REVENUE,Barron Clark Castings Ltd
Peterborough City Council,Planning Services,Economic Development,Employees,16/12/2011,423740,1332,REVENUE,Hays Specialist Recruitment Ltd
Peterborough City Council,Capital,Capital,Capital Pending Update to BS,16/12/2011,423879,27719.66,CAPITAL,L Garfield (Builders) Ltd
Peterborough City Council,Deficit/(Surplus) on Trading Undertakings,Trading Account Surpluses & Deficits,Supplies and Services,16/12/2011,423983,525.84,REVENUE,Barron Clark Castings Ltd
Peterborough City Council,Deficit/(Surplus) on Trading Undertakings,Trading Account Surpluses & Deficits,Supplies and Services,16/12/2011,423989,884.21,REVENUE,Barron Clark Castings Ltd
Peterborough City Council,Children's & Education Services - Education,Non-School Funding,Transport,16/12/2011,424014,602.4,REVENUE,R T Enterprises Ltd T/A Royal Taxis
Peterborough City Council,Children's & Education Services - Education,Non-School Funding,Transport,16/12/2011,424016,560.4,REVENUE,R T Enterprises Ltd T/A Royal Taxis
Peterborough City Council,Children's & Education Services - Education,Non-School Funding,Transport,16/12/2011,424018,837.6,REVENUE,R T Enterprises Ltd T/A Royal Taxis
Peterborough City Council,Children's & Education Services - Education,Non-School Funding,Transport,16/12/2011,424019,721.2,REVENUE,R T Enterprises Ltd T/A Royal Taxis
Peterborough City Council,Children's & Education Services - Education,Non-School Funding,Transport,16/12/2011,424034,1198.5,REVENUE,Goldstar Cabs Ltd
Peterborough City Council,Children's & Education Services - Education,Non-School Funding,Transport,16/12/2011,424035,3814.38,REVENUE,Shaws Coaches
Peterborough City Council,Deficit/(Surplus) on Trading Undertakings,Trading Account Surpluses & Deficits,Supplies and Services,16/12/2011,424068,1687.3,REVENUE,Barron Clark Castings Ltd
Peterborough City Council,Deficit/(Surplus) on Trading Undertakings,Trading Account Surpluses & Deficits,Supplies and Services,16/12/2011,424069,1117.8,REVENUE,Barron Clark Castings Ltd
Peterborough City Council,Deficit/(Surplus) on Trading Undertakings,Trading Account Surpluses & Deficits,Supplies and Services,16/12/2011,424074,638.4,REVENUE,Barron Clark Castings Ltd
Peterborough City Council,Deficit/(Surplus) on Trading Undertakings,Trading Account Surpluses & Deficits,Supplies and Services,16/12/2011,424075,811.2,REVENUE,Barron Clark Castings Ltd
Peterborough City Council,Court Services,Coroner's Court Service,More than one Expenses Type,16/12/2011,424079,5886.34,REVENUE,Coroners Service
Peterborough City Council,More than one Service Area Category,More than one Service Division,More than one Expenses Type,16/12/2011,424089,1245.23,REVENUE,Peterborough City Council
Peterborough City Council,Planning Services,Community Development,Supplies and Services,16/12/2011,424107,1000,REVENUE,Peterborough Racial Equality Council
Peterborough City Council,Planning Services,Community Development,Third Party Payments,16/12/2011,424108,3000,REVENUE,Peterborough Racial Equality Council
Peterborough City Council,Housing Services,Homelessness,Supplies and Services,16/12/2011,424109,550,REVENUE,Houselet Property Services
Peterborough City Council,Children's & Education Services - Children's Social Care,Children Looked After,Premises,19/12/2011,409406,-1975,REVENUE,The K A Wing Group Ltd
Peterborough City Council,Housing Services,Homelessness,Supplies and Services,19/12/2011,417446,702.55,REVENUE,Euro RSCG Riley Ltd
Peterborough City Council,Children's & Education Services - Children's Social Care,Children Looked After,Supplies and Services,19/12/2011,418033,1520.15,REVENUE,The K A Wing Group Ltd
Peterborough City Council,Children's & Education Services - Children's Social Care,Other Children's & Families Services,Employees,19/12/2011,419153,1326.76,REVENUE,Care Recruitment UK Ltd
Peterborough City Council,"Highways, Roads & Transport Services","Environmental, Safety & Routine Maintenance",Supplies and Services,19/12/2011,419703,6460.09,REVENUE,Telent Technology Services Ltd
Peterborough City Council,Children's & Education Services - Children's Social Care,Other Children's & Families Services,Employees,19/12/2011,419718,1480.5,REVENUE,Blue Group International Ltd
Peterborough City Council,Deficit/(Surplus) on Trading Undertakings,Trading Account Surpluses & Deficits,Premises,19/12/2011,419818,1168.02,REVENUE,Energy Report Ltd
Peterborough City Council,Deficit/(Surplus) on Trading Undertakings,Trading Account Surpluses & Deficits,Supplies and Services,19/12/2011,419820,1122.33,REVENUE,Carillon Industrial Services Ltd
Peterborough City Council,Children's & Education Services - Children's Social Care,Children's Services - Commissioning and Social Work,Third Party Payments,19/12/2011,419846,4581.1,REVENUE,DRINKSENSE
Peterborough City Council,Housing Services,Homelessness,Supplies and Services,19/12/2011,419880,702.55,REVENUE,Euro RSCG Riley Ltd
Peterborough City Council,Children's & Education Services - Children's Social Care,Children Looked After,Supplies and Services - Transfer Payments,19/12/2011,419882,11400,REVENUE,Lincoln House Childrens Services
Peterborough City Council,Children's & Education Services - Children's Social Care,Other Children's & Families Services,Employees,19/12/2011,419889,1658.78,REVENUE,Blue Group International Ltd
Peterborough City Council,Children's & Education Services - Children's Social Care,Other Children's & Families Services,Supplies and Services,19/12/2011,419893,18018,REVENUE,St Francis Children's Society
Peterborough City Council,Cultural and Related Services,Culture & Heritage,Supplies and Services,19/12/2011,419999,10152,REVENUE,Pearce Hire
Peterborough City Council,Support Services,Support Services,Supplies and Services,19/12/2011,420001,1116,REVENUE,Direct Comms Radio Services Ltd
Peterborough City Council,Children's & Education Services - Children's Social Care,Family Support Services,Premises,19/12/2011,420025,2526.61,REVENUE,Peterborough Provider Services
Peterborough City Council,Children's & Education Services - Children's Social Care,Family Support Services,Premises,19/12/2011,420031,1873.98,REVENUE,Peterborough Provider Services
Peterborough City Council,Support Services,Support Services,Supplies and Services,19/12/2011,420033,666,REVENUE,Key People Ltd
Peterborough City Council,Children's & Education Services - Children's Social Care,Other Children's & Families Services,Employees,19/12/2011,420063,1197,REVENUE,Medicare First
Peterborough City Council,"Highways, Roads & Transport Services",Public Transport,Supplies and Services,19/12/2011,420498,14094.71,REVENUE,Stagecoach in Peterborough
Peterborough City Council,Children's & Education Services - Children's Social Care,Children Looked After,Supplies and Services - Transfer Payments,19/12/2011,420908,520,REVENUE,Action Repairs
Peterborough City Council,"Cultural, Environmental and Planning Services",Flood Defence & Land Drainage,Supplies and Services,19/12/2011,421131,19200,REVENUE,ADC (East Anglia) Ltd
Peterborough City Council,Children's & Education Services - Children's Social Care,Family Support Services,Employees,19/12/2011,422454,765.36,REVENUE,PAM Recruitment Ltd
Peterborough City Council,Capital,Capital,Capital Pending Update to BS,19/12/2011,422509,136234.56,CAPITAL,Kier Eastern
Peterborough City Council,Children's & Education Services - Children's Social Care,Children Looked After,Premises,19/12/2011,422579,2939.74,REVENUE,The K A Wing Group Ltd
Peterborough City Council,"Highways, Roads & Transport Services","Transport planning, policy and strategy",Transport,19/12/2011,422709,517.19,REVENUE,Burnt Tree Group
Peterborough City Council,"Highways, Roads & Transport Services",Street Lighting,Premises,19/12/2011,423041,84778.53,REVENUE,Southern Electric
Peterborough City Council,Capital,Capital,Capital Pending Update to BS,19/12/2011,423280,143659.72,CAPITAL,E N Suiter & Sons Ltd
Peterborough City Council,"Highways, Roads & Transport Services",Public Transport,Third Party Payments,19/12/2011,423371,1782.46,REVENUE,WRVS
Peterborough City Council,Cultural and Related Services,Tourism,Supplies and Services,19/12/2011,423389,805.6,REVENUE,Vivacity Culture and Leisure
Peterborough City Council,Adult Social Care,Support Services & Management Costs,Supplies and Services,19/12/2011,423444,2340,REVENUE,CEDR Solve
Peterborough City Council,Cultural and Related Services,Tourism,Supplies and Services,19/12/2011,423672,1814.5,REVENUE,Vivacity Culture and Leisure
Peterborough City Council,Support Services,Support Services,Supplies and Services,19/12/2011,424088,720,REVENUE,East Magazine-Thompson Media Partners
Peterborough City Council,More than one Service Area Category,More than one Service Division,More than one Expenses Type,19/12/2011,424093,1322.87,REVENUE,Peterborough City Council
Peterborough City Council,More than one Service Area Category,More than one Service Division,More than one Expenses Type,19/12/2011,424128,2261.42,"Mixture of Capital, Revenue and/or Balance Sheet",Warics Ltd
Peterborough City Council,More than one Service Area Category,More than one Service Division,More than one Expenses Type,19/12/2011,424129,5200,"Mixture of Capital, Revenue and/or Balance Sheet",Warics Ltd
Peterborough City Council,More than one Service Area Category,More than one Service Division,More than one Expenses Type,19/12/2011,424130,4456,"Mixture of Capital, Revenue and/or Balance Sheet",T G Development Ltd
Peterborough City Council,More than one Service Area Category,More than one Service Division,More than one Expenses Type,19/12/2011,424131,3900,"Mixture of Capital, Revenue and/or Balance Sheet",Ransome Engineering Services Ltd
Peterborough City Council,More than one Service Area Category,More than one Service Division,More than one Expenses Type,19/12/2011,424132,1425,"Mixture of Capital, Revenue and/or Balance Sheet",Dolphin Mobility East Midlands Ltd
Peterborough City Council,More than one Service Area Category,More than one Service Division,More than one Expenses Type,19/12/2011,424134,4694.55,"Mixture of Capital, Revenue and/or Balance Sheet",Jones Heating Ltd
Peterborough City Council,More than one Service Area Category,More than one Service Division,More than one Expenses Type,19/12/2011,424135,1488,"Mixture of Capital, Revenue and/or Balance Sheet",Burmor Construction
Peterborough City Council,More than one Service Area Category,More than one Service Division,More than one Expenses Type,19/12/2011,424137,4817,"Mixture of Capital, Revenue and/or Balance Sheet",EMS Stairlifts
Peterborough City Council,Children's & Education Services - Children's Social Care,Other Children's & Families Services,Supplies and Services - Transfer Payments,19/12/2011,424172,600,REVENUE,Redacted Personal Data
Peterborough City Council,Children's & Education Services - Children's Social Care,Other Children's & Families Services,Supplies and Services - Transfer Payments,19/12/2011,424173,613.6,REVENUE,Redacted Personal Data
Peterborough City Council,Children's & Education Services - Children's Social Care,Children Looked After,Supplies and Services - Transfer Payments,19/12/2011,424280,616.18,REVENUE,Redacted Personal Data
Peterborough City Council,Children's & Education Services - Children's Social Care,Children Looked After,Supplies and Services - Transfer Payments,19/12/2011,424281,560.98,REVENUE,Redacted Personal Data
Peterborough City Council,Children's & Education Services - Children's Social Care,Children Looked After,Supplies and Services - Transfer Payments,19/12/2011,424282,560.98,REVENUE,Redacted Personal Data
Peterborough City Council,Children's & Education Services - Children's Social Care,Children Looked After,Supplies and Services - Transfer Payments,19/12/2011,424283,529.9,REVENUE,Redacted Personal Data
Peterborough City Council,Children's & Education Services - Children's Social Care,Children Looked After,Supplies and Services - Transfer Payments,19/12/2011,424284,560.98,REVENUE,Redacted Personal Data
Peterborough City Council,Children's & Education Services - Children's Social Care,Children Looked After,Supplies and Services - Transfer Payments,19/12/2011,424285,529.9,REVENUE,Redacted Personal Data
Peterborough City Council,Children's & Education Services - Children's Social Care,Children Looked After,Supplies and Services - Transfer Payments,19/12/2011,424287,529.9,REVENUE,Redacted Personal Data
Peterborough City Council,Children's & Education Services - Children's Social Care,Children Looked After,Supplies and Services - Transfer Payments,19/12/2011,424288,529.9,REVENUE,Redacted Personal Data
Peterborough City Council,Children's & Education Services - Children's Social Care,Children Looked After,Supplies and Services - Transfer Payments,19/12/2011,424289,707.42,REVENUE,Redacted Personal Data
Peterborough City Council,Children's & Education Services - Children's Social Care,Children Looked After,Supplies and Services - Transfer Payments,19/12/2011,424290,529.9,REVENUE,Redacted Personal Data
Peterborough City Council,Children's & Education Services - Children's Social Care,Children Looked After,Supplies and Services - Transfer Payments,19/12/2011,424291,529.9,REVENUE,Redacted Personal Data
Peterborough City Council,Children's & Education Services - Children's Social Care,Children Looked After,Supplies and Services - Transfer Payments,19/12/2011,424292,560.98,REVENUE,Redacted Personal Data
Peterborough City Council,Children's & Education Services - Children's Social Care,Children Looked After,Supplies and Services - Transfer Payments,19/12/2011,424293,529.9,REVENUE,Redacted Personal Data
Peterborough City Council,Children's & Education Services - Children's Social Care,Children Looked After,Supplies and Services - Transfer Payments,19/12/2011,424295,776.79,REVENUE,Redacted Personal Data
Peterborough City Council,Children's & Education Services - Children's Social Care,Children Looked After,Supplies and Services - Transfer Payments,19/12/2011,424296,560.98,REVENUE,Redacted Personal Data
Peterborough City Council,Children's & Education Services - Children's Social Care,Children Looked After,Supplies and Services - Transfer Payments,19/12/2011,424298,529.9,REVENUE,Redacted Personal Data
Peterborough City Council,Children's & Education Services - Children's Social Care,Children Looked After,Supplies and Services - Transfer Payments,19/12/2011,424300,510.98,REVENUE,Redacted Personal Data
Peterborough City Council,Children's & Education Services - Children's Social Care,Children Looked After,Supplies and Services - Transfer Payments,19/12/2011,424301,529.9,REVENUE,Redacted Personal Data
Peterborough City Council,Children's & Education Services - Children's Social Care,Children Looked After,Supplies and Services - Transfer Payments,19/12/2011,424302,529.9,REVENUE,Redacted Personal Data
Peterborough City Council,Children's & Education Services - Children's Social Care,Children Looked After,Supplies and Services - Transfer Payments,19/12/2011,424303,560.98,REVENUE,Redacted Personal Data
Peterborough City Council,Children's & Education Services - Children's Social Care,Children Looked After,Supplies and Services - Transfer Payments,19/12/2011,424306,529.9,REVENUE,Redacted Personal Data
Peterborough City Council,Children's & Education Services - Children's Social Care,Children Looked After,Supplies and Services - Transfer Payments,19/12/2011,424307,529.9,REVENUE,Redacted Personal Data
Peterborough City Council,Children's & Education Services - Children's Social Care,Children Looked After,Supplies and Services - Transfer Payments,19/12/2011,424308,529.9,REVENUE,Redacted Personal Data
Peterborough City Council,Children's & Education Services - Children's Social Care,Children Looked After,Supplies and Services - Transfer Payments,19/12/2011,424317,534.45,REVENUE,Redacted Personal Data
Peterborough City Council,Children's & Education Services - Children's Social Care,Children Looked After,Supplies and Services - Transfer Payments,19/12/2011,424318,560.98,REVENUE,Redacted Personal Data
Peterborough City Council,Children's & Education Services - Children's Social Care,Children Looked After,Supplies and Services - Transfer Payments,19/12/2011,424319,885.08,REVENUE,Redacted Personal Data
Peterborough City Council,Children's & Education Services - Children's Social Care,Children Looked After,Supplies and Services - Transfer Payments,19/12/2011,424322,529.9,REVENUE,Redacted Personal Data
Peterborough City Council,Children's & Education Services - Children's Social Care,Children Looked After,Supplies and Services - Transfer Payments,19/12/2011,424323,560.98,REVENUE,Redacted Personal Data
Peterborough City Council,Children's & Education Services - Children's Social Care,Children Looked After,Supplies and Services - Transfer Payments,19/12/2011,424325,529.9,REVENUE,Redacted Personal Data
Peterborough City Council,Children's & Education Services - Children's Social Care,Children Looked After,Supplies and Services - Transfer Payments,19/12/2011,424326,560.98,REVENUE,Redacted Personal Data
Peterborough City Council,Children's & Education Services - Children's Social Care,Children Looked After,Supplies and Services - Transfer Payments,19/12/2011,424327,534.45,REVENUE,Redacted Personal Data
Peterborough City Council,Children's & Education Services - Children's Social Care,Children Looked After,Supplies and Services - Transfer Payments,19/12/2011,424332,560.98,REVENUE,Redacted Personal Data
Peterborough City Council,Children's & Education Services - Children's Social Care,Children Looked After,Supplies and Services - Transfer Payments,19/12/2011,424341,529.9,REVENUE,Redacted Personal Data
Peterborough City Council,Children's & Education Services - Children's Social Care,Children Looked After,Supplies and Services - Transfer Payments,19/12/2011,424344,529.9,REVENUE,Redacted Personal Data
Peterborough City Council,Children's & Education Services - Children's Social Care,Children Looked After,Supplies and Services - Transfer Payments,19/12/2011,424346,529.9,REVENUE,Redacted Personal Data
Peterborough City Council,Children's & Education Services - Children's Social Care,Family Support Services,Supplies and Services,19/12/2011,424353,1148.22,REVENUE,Redacted Personal Data
Peterborough City Council,Children's & Education Services - Children's Social Care,Children Looked After,Supplies and Services - Transfer Payments,19/12/2011,424372,560.98,REVENUE,Redacted Personal Data
Peterborough City Council,Children's & Education Services - Children's Social Care,Children Looked After,Supplies and Services - Transfer Payments,19/12/2011,424379,885.08,REVENUE,Redacted Personal Data
Peterborough City Council,Children's & Education Services - Children's Social Care,Children Looked After,Supplies and Services - Transfer Payments,19/12/2011,424381,885.08,REVENUE,Redacted Personal Data
Peterborough City Council,Children's & Education Services - Children's Social Care,Children Looked After,Supplies and Services - Transfer Payments,19/12/2011,424382,885.08,REVENUE,Redacted Personal Data
Peterborough City Council,Children's & Education Services - Children's Social Care,Children Looked After,Supplies and Services - Transfer Payments,19/12/2011,424383,885.08,REVENUE,Redacted Personal Data
Peterborough City Council,Children's & Education Services - Children's Social Care,Children Looked After,Supplies and Services - Transfer Payments,19/12/2011,424384,885.08,REVENUE,Redacted Personal Data
Peterborough City Council,Children's & Education Services - Children's Social Care,Children Looked After,Supplies and Services - Transfer Payments,19/12/2011,424388,707.42,REVENUE,Redacted Personal Data
Peterborough City Council,Children's & Education Services - Children's Social Care,Children Looked After,Supplies and Services - Transfer Payments,19/12/2011,424401,529.9,REVENUE,Redacted Personal Data
Peterborough City Council,Children's & Education Services - Children's Social Care,Children Looked After,Supplies and Services - Transfer Payments,19/12/2011,424418,776.79,REVENUE,Redacted Personal Data
Peterborough City Council,Children's & Education Services - Children's Social Care,Children Looked After,Supplies and Services - Transfer Payments,19/12/2011,424425,560.98,REVENUE,Redacted Personal Data
Peterborough City Council,Children's & Education Services - Children's Social Care,Children Looked After,Supplies and Services - Transfer Payments,19/12/2011,424442,529.9,REVENUE,Redacted Personal Data
Peterborough City Council,Children's & Education Services - Children's Social Care,Children Looked After,Supplies and Services - Transfer Payments,19/12/2011,424443,529.9,REVENUE,Redacted Personal Data
Peterborough City Council,Children's & Education Services - Children's Social Care,Children Looked After,Supplies and Services - Transfer Payments,19/12/2011,424457,529.9,REVENUE,Redacted Personal Data
Peterborough City Council,Children's & Education Services - Children's Social Care,Children Looked After,Supplies and Services - Transfer Payments,19/12/2011,424471,529.9,REVENUE,Redacted Personal Data
Peterborough City Council,Children's & Education Services - Children's Social Care,Children Looked After,Supplies and Services - Transfer Payments,19/12/2011,424476,780.5,REVENUE,Redacted Personal Data
Peterborough City Council,Children's & Education Services - Children's Social Care,Children Looked After,Supplies and Services - Transfer Payments,19/12/2011,424479,626.43,REVENUE,Redacted Personal Data
Peterborough City Council,Children's & Education Services - Children's Social Care,Other Children's & Families Services,Supplies and Services - Transfer Payments,19/12/2011,424480,695,REVENUE,Redacted Personal Data
Peterborough City Council,Children's & Education Services - Children's Social Care,Children Looked After,Supplies and Services - Transfer Payments,19/12/2011,424491,529.9,REVENUE,Redacted Personal Data
Peterborough City Council,Children's & Education Services - Children's Social Care,Other Children's & Families Services,Supplies and Services - Transfer Payments,19/12/2011,424497,778.86,REVENUE,Redacted Personal Data
Peterborough City Council,Children's & Education Services - Children's Social Care,Children Looked After,Supplies and Services - Transfer Payments,19/12/2011,424532,539.93,REVENUE,Redacted Personal Data
Peterborough City Council,Children's & Education Services - Children's Social Care,Children Looked After,Supplies and Services - Transfer Payments,19/12/2011,424540,2620.55,REVENUE,Redacted Personal Data
Peterborough City Council,Children's & Education Services - Children's Social Care,Children Looked After,Supplies and Services - Transfer Payments,19/12/2011,424543,2106.46,REVENUE,Redacted Personal Data
Peterborough City Council,Children's & Education Services - Children's Social Care,Children Looked After,Supplies and Services - Transfer Payments,19/12/2011,424545,1260,REVENUE,Redacted Personal Data
Peterborough City Council,Support Services,Support Services,Premises,19/12/2011,424549,5306.03,REVENUE,Anglian Water
Peterborough City Council,Planning Services,Planning Policy,Supplies and Services,19/12/2011,424560,1286.42,REVENUE,Cambridgeshire County Council
Peterborough City Council,Support Services,Support Services,Supplies and Services,21/12/2011,394918,-5945.2,REVENUE,Clarity Retail Systems Limited
Peterborough City Council,Support Services,Support Services,Supplies and Services,21/12/2011,394922,-743.16,REVENUE,Clarity Retail Systems Limited
Peterborough City Council,Children's & Education Services - Children's Social Care,Children Looked After,Supplies and Services - Transfer Payments,21/12/2011,398090,2907.49,REVENUE,Foster Care Associates Ltd FCA
Peterborough City Council,Children's & Education Services - Children's Social Care,Children Looked After,Supplies and Services - Transfer Payments,21/12/2011,400080,2907.49,REVENUE,Foster Care Associates Ltd FCA
Peterborough City Council,Children's & Education Services - Children's Social Care,Children Looked After,Supplies and Services - Transfer Payments,21/12/2011,400100,2626.12,REVENUE,Foster Care Associates Ltd FCA
Peterborough City Council,Children's & Education Services - Children's Social Care,Children Looked After,Supplies and Services - Transfer Payments,21/12/2011,400215,2907.49,REVENUE,Foster Care Associates Ltd FCA
Peterborough City Council,Children's & Education Services - Children's Social Care,Children Looked After,Supplies and Services - Transfer Payments,21/12/2011,400224,2907.49,REVENUE,Foster Care Associates Ltd FCA
Peterborough City Council,Children's & Education Services - Children's Social Care,Children Looked After,Supplies and Services - Transfer Payments,21/12/2011,400225,-11443.24,REVENUE,Foster Care Associates Ltd FCA
Peterborough City Council,Children's & Education Services - Children's Social Care,Children Looked After,Supplies and Services - Transfer Payments,21/12/2011,400226,2907.49,REVENUE,Foster Care Associates Ltd FCA
Peterborough City Council,Children's & Education Services - Children's Social Care,Children Looked After,Supplies and Services - Transfer Payments,21/12/2011,402042,2907.49,REVENUE,Foster Care Associates Ltd FCA
Peterborough City Council,Planning Services,More than one Service Division,Third Party Payments,21/12/2011,407833,3500,REVENUE,Age Concern Peterborough.
Peterborough City Council,Children's & Education Services - Education,Non-School Funding,Supplies and Services,21/12/2011,408742,650,REVENUE,Thomas Deacon Academy
Peterborough City Council,Children's & Education Services - Children's Social Care,Other Children's & Families Services,Employees,21/12/2011,412200,1575,REVENUE,Sanctuary Personnel Ltd
Peterborough City Council,Support Services,Support Services,Supplies and Services,21/12/2011,413627,3634.15,REVENUE,Clarity Retail Systems Limited
Peterborough City Council,Children's & Education Services - Children's Social Care,Other Children's & Families Services,Employees,21/12/2011,414799,1575,REVENUE,Sanctuary Personnel Ltd
Peterborough City Council,Children's & Education Services - Children's Social Care,Other Children's & Families Services,Employees,21/12/2011,415747,1575,REVENUE,Sanctuary Personnel Ltd
Peterborough City Council,Children's & Education Services - Children's Social Care,Other Children's & Families Services,Employees,21/12/2011,417273,1575,REVENUE,Sanctuary Personnel Ltd
Peterborough City Council,Capital,Capital,Capital Pending Update to BS,21/12/2011,418005,570.71,CAPITAL,Atkins Limited
Peterborough City Council,Children's & Education Services - Children's Social Care,Other Children's & Families Services,Employees,21/12/2011,418320,1575,REVENUE,Sanctuary Personnel Ltd
Peterborough City Council,Cultural and Related Services,Waste Collection,Supplies and Services,21/12/2011,418622,252064.37,REVENUE,Waste Recycling Ltd
Peterborough City Council,Children's & Education Services - Children's Social Care,Family Support Services,Supplies and Services,21/12/2011,418723,2492.4,REVENUE,Jenx Ltd
Peterborough City Council,Children's & Education Services - Children's Social Care,Family Support Services,Supplies and Services,21/12/2011,418724,2797.2,REVENUE,Jenx Ltd
Peterborough City Council,Children's & Education Services - Children's Social Care,Family Support Services,Employees,21/12/2011,418761,2395.2,REVENUE,Jenx Ltd
Peterborough City Council,Children's & Education Services - Children's Social Care,Other Children's & Families Services,Employees,21/12/2011,419617,1575,REVENUE,Sanctuary Personnel Ltd
Peterborough City Council,Children's & Education Services - Children's Social Care,Other Children's & Families Services,Third Party Payments,21/12/2011,419686,6600,REVENUE,Blumint
Peterborough City Council,Support Services,Support Services,Employees,21/12/2011,419899,1369.37,REVENUE,Venn Group Ltd
Peterborough City Council,Support Services,Support Services,Employees,21/12/2011,419900,1327.03,REVENUE,Venn Group Ltd
Peterborough City Council,Children's & Education Services - Children's Social Care,Children Looked After,Supplies and Services,21/12/2011,419975,9854.21,REVENUE,St Andrew's Healthcare
Peterborough City Council,Capital,Capital,Capital Pending Update to BS,21/12/2011,420004,2346,CAPITAL,Ground Engineering Ltd
Peterborough City Council,Children's & Education Services - Education,Non-School Funding,Transport,21/12/2011,420034,1557.6,REVENUE,Bedford Borough Council
Peterborough City Council,Children's & Education Services - Children's Social Care,Support Services & Management Costs,Supplies and Services,21/12/2011,420044,1117.2,REVENUE,Cellmark
Peterborough City Council,Children's & Education Services - Children's Social Care,Other Children's & Families Services,Employees,21/12/2011,420046,1687.2,REVENUE,Medicare First
Peterborough City Council,"Highways, Roads & Transport Services","Transport planning, policy and strategy",Supplies and Services,21/12/2011,420052,5613.6,REVENUE,Hertfordshire County Council
Peterborough City Council,Children's & Education Services - Children's Social Care,Other Children's & Families Services,Employees,21/12/2011,420064,1462.56,REVENUE,Medicare First
Peterborough City Council,Children's & Education Services - Children's Social Care,Other Children's & Families Services,Employees,21/12/2011,420065,1687.2,REVENUE,Medicare First
Peterborough City Council,Environmental and Regulatory Services,Flood Defence & Land Drainage,Supplies and Services,21/12/2011,420078,13460.4,REVENUE,L A Jackson
Peterborough City Council,Children's & Education Services - Children's Social Care,Support Services & Management Costs,Employees,21/12/2011,420080,1614.06,REVENUE,Service Care Solutions Ltd
Peterborough City Council,Children's & Education Services - Education,Non-School Funding,Supplies and Services,21/12/2011,420081,4724.69,REVENUE,Witham Hall Preparatory School
Peterborough City Council,Children's & Education Services - Education,Non-School Funding,Employees,21/12/2011,420082,740,REVENUE,Young Lives
Peterborough City Council,Children's & Education Services - Education,All Schools - apportion across sectors,Supplies and Services,21/12/2011,420118,3000,REVENUE,Peterborough Tree Services Ltd
Peterborough City Council,Housing Services,Homelessness,Supplies and Services,21/12/2011,420137,702.55,REVENUE,Euro RSCG Riley Ltd
Peterborough City Council,Children's & Education Services - Children's Social Care,Children Looked After,Employees,21/12/2011,420149,512.69,REVENUE,Advantage Healthcare Nursing & Care Ltd
Peterborough City Council,Children's & Education Services - Children's Social Care,Children Looked After,Supplies and Services - Transfer Payments,21/12/2011,420233,22609.57,REVENUE,Lovell's Hall
Peterborough City Council,Support Services,Support Services,Supplies and Services,21/12/2011,420236,666,REVENUE,Key People Ltd
Peterborough City Council,Children's & Education Services - Education,Non-School Funding,Supplies and Services,21/12/2011,420237,19503,REVENUE,Lovell's Hall
Peterborough City Council,Children's & Education Services - Children's Social Care,Support Services & Management Costs,Employees,21/12/2011,420238,945,REVENUE,Sheffield Hallam University
Peterborough City Council,Children's & Education Services - Children's Social Care,Support Services & Management Costs,Employees,21/12/2011,420258,1529.14,REVENUE,Randstad Care Ltd
Peterborough City Council,Children's & Education Services - Children's Social Care,Other Children's & Families Services,Employees,21/12/2011,420259,923.4,REVENUE,Randstad Care Ltd
Peterborough City Council,Children's & Education Services - Children's Social Care,Children Looked After,Employees,21/12/2011,420261,742.37,REVENUE,Randstad Care Ltd
Peterborough City Council,Children's & Education Services - Children's Social Care,Children Looked After,Employees,21/12/2011,420263,600.22,REVENUE,Randstad Care Ltd
Peterborough City Council,Capital,Capital,Capital Pending Update to BS,21/12/2011,420272,2352,CAPITAL,Custom Fencing
Peterborough City Council,Children's & Education Services - Children's Social Care,Family Support Services,Employees,21/12/2011,420278,925.8,REVENUE,Movement 2
Peterborough City Council,Planning Services,Planning Policy,Supplies and Services,21/12/2011,420280,512.06,REVENUE,Danwood Finance Ltd
Peterborough City Council,Cultural and Related Services,Recreation & Sport,Supplies and Services,21/12/2011,420283,902.15,REVENUE,Cambridgeshire Constabulary
Peterborough City Council,Planning Services,Economic Development,Employees,21/12/2011,420285,1355.86,REVENUE,The Synergy Group
Peterborough City Council,"Highways, Roads & Transport Services","Transport planning, policy and strategy",Employees,21/12/2011,420291,1310.96,REVENUE,The Synergy Group
Peterborough City Council,Planning Services,Economic Development,Employees,21/12/2011,420292,1870.02,REVENUE,The Synergy Group
Peterborough City Council,Planning Services,Economic Development,Employees,21/12/2011,420293,1700.4,REVENUE,The Synergy Group
Peterborough City Council,Planning Services,Economic Development,Employees,21/12/2011,420297,1232.02,REVENUE,The Synergy Group
Peterborough City Council,Planning Services,Economic Development,Employees,21/12/2011,420299,1265.46,REVENUE,The Synergy Group
Peterborough City Council,Children's & Education Services - Children's Social Care,Other Children's & Families Services,Employees,21/12/2011,420301,1586.52,REVENUE,Sanctuary Personnel Ltd
Peterborough City Council,Children's & Education Services - Children's Social Care,Other Children's & Families Services,Employees,21/12/2011,420302,1575,REVENUE,Sanctuary Personnel Ltd
Peterborough City Council,Children's & Education Services - Children's Social Care,Other Children's & Families Services,Employees,21/12/2011,420303,1575,REVENUE,Sanctuary Personnel Ltd
Peterborough City Council,"Highways, Roads & Transport Services",Public Transport,Employees,21/12/2011,420306,848,REVENUE,Redacted Personal Data
Peterborough City Council,Housing Services,Housing Benefits,Supplies and Services,21/12/2011,420328,723.48,REVENUE,Crown Records Management Ltd
Peterborough City Council,Support Services,Support Services,Supplies and Services,21/12/2011,420540,3900,REVENUE,Learning Pool Limited
Peterborough City Council,Capital,Capital,Capital Pending Update to BS,21/12/2011,420898,13560,CAPITAL,Atkins Limited
Peterborough City Council,Children's & Education Services - Education,Secondary,Supplies and Services,21/12/2011,420915,10800,REVENUE,Rider Levett Bucknall UK Ltd
Peterborough City Council,Children's & Education Services - Education,Secondary,Employees,21/12/2011,420928,9614.4,REVENUE,Mana Resourcing Ltd
Peterborough City Council,Children's & Education Services - Education,Secondary,Supplies and Services,21/12/2011,421025,9600,REVENUE,Rider Levett Bucknall UK Ltd
Peterborough City Council,Children's & Education Services - Children's Social Care,Children Looked After,Employees,21/12/2011,421134,1332,REVENUE,Frontline Staffing Ltd
Peterborough City Council,Children's & Education Services - Children's Social Care,Other Children's & Families Services,Employees,21/12/2011,421135,1527.12,REVENUE,Frontline Staffing Ltd
Peterborough City Council,Children's & Education Services - Children's Social Care,Other Children's & Families Services,Employees,21/12/2011,421136,1696.8,REVENUE,Frontline Staffing Ltd
Peterborough City Council,Support Services,Support Services,Supplies and Services,21/12/2011,421359,3423.4,REVENUE,Redacted Personal Data
Peterborough City Council,Support Services,Support Services,Supplies and Services,21/12/2011,421437,27353.16,REVENUE,Danwood Group Limited
Peterborough City Council,More than one Service Area Category,More than one Service Division,Balance Sheet,21/12/2011,421445,731.39,Balance Sheet,Rossendales C B Ltd
Peterborough City Council,More than one Service Area Category,More than one Service Division,Supplies and Services,21/12/2011,421469,1350.23,REVENUE,TNT Post Midlands Ltd
Peterborough City Council,Children's & Education Services - Education,Non-School Funding,Employees,21/12/2011,421480,936,REVENUE,Mana Resourcing Ltd
Peterborough City Council,Children's & Education Services - Children's Social Care,Other Children's & Families Services,Third Party Payments,21/12/2011,421482,6250,REVENUE,Peterborough Provider Services
Peterborough City Council,Central Services to the Public,Local Tax,Employees,21/12/2011,421484,1304.64,REVENUE,The Synergy Group
Peterborough City Council,Capital,Capital,Capital Pending Update to BS,21/12/2011,421930,29400,CAPITAL,Peter Brett Associates
Peterborough City Council,Children's & Education Services - Children's Social Care,Children Looked After,Supplies and Services - Transfer Payments,21/12/2011,421938,20711.63,REVENUE,Young Options College Ltd
Peterborough City Council,Children's & Education Services - Children's Social Care,Children Looked After,Supplies and Services - Transfer Payments,21/12/2011,422258,3620.8,REVENUE,Archway Care Ltd
Peterborough City Council,Children's & Education Services - Children's Social Care,Children Looked After,Supplies and Services - Transfer Payments,21/12/2011,422260,3153.6,REVENUE,Archway Care Ltd
Peterborough City Council,Children's & Education Services - Children's Social Care,Children Looked After,Supplies and Services - Transfer Payments,21/12/2011,422261,3620.8,REVENUE,Archway Care Ltd
Peterborough City Council,Housing Services,Private Sector Housing Renewal,Supplies and Services,21/12/2011,422355,612,REVENUE,Fletton Electrics Ltd
Peterborough City Council,"Highways, Roads & Transport Services",Public Transport,Employees,21/12/2011,422362,1129,REVENUE,Novadata Ltd
Peterborough City Council,Support Services,Support Services,Supplies and Services,21/12/2011,422378,9006.36,REVENUE,Eversheds LLP
Peterborough City Council,Children's & Education Services - Children's Social Care,Other Children's & Families Services,Employees,21/12/2011,422431,1894.99,REVENUE,Sanctuary Personnel Ltd
Peterborough City Council,Children's & Education Services - Children's Social Care,Other Children's & Families Services,Employees,21/12/2011,422435,1575,REVENUE,Sanctuary Personnel Ltd
Peterborough City Council,Children's & Education Services - Children's Social Care,Other Children's & Families Services,Employees,21/12/2011,422436,1271.04,REVENUE,Sanctuary Personnel Ltd
Peterborough City Council,Support Services,Support Services,Employees,21/12/2011,422495,616.27,REVENUE,Reed Specialist Recruitment
Peterborough City Council,Deficit/(Surplus) on Trading Undertakings,Trading Account Surpluses & Deficits,Supplies and Services,21/12/2011,422510,5760,REVENUE,Barron Clark Castings Ltd
Peterborough City Council,Deficit/(Surplus) on Trading Undertakings,Trading Account Surpluses & Deficits,Supplies and Services,21/12/2011,422511,5700,REVENUE,Barron Clark Castings Ltd
Peterborough City Council,Children's & Education Services - Education,Primary,Supplies and Services,21/12/2011,422537,7920,REVENUE,Louder Than Life Ltd
Peterborough City Council,Children's & Education Services - Children's Social Care,Other Children's & Families Services,Employees,21/12/2011,422564,1894.99,REVENUE,Sanctuary Personnel Ltd
Peterborough City Council,Children's & Education Services - Children's Social Care,Other Children's & Families Services,Employees,21/12/2011,422583,1764,REVENUE,Sellick Partnership Group Limited
Peterborough City Council,Children's & Education Services - Children's Social Care,Children Looked After,Supplies and Services - Transfer Payments,21/12/2011,422765,3620.8,REVENUE,Archway Care Ltd
Peterborough City Council,Children's & Education Services - Children's Social Care,Other Children's & Families Services,Employees,21/12/2011,422767,2761.85,REVENUE,Randstad Care Ltd
Peterborough City Council,Children's & Education Services - Children's Social Care,Support Services & Management Costs,Supplies and Services,21/12/2011,422992,900,REVENUE,"Bennett, Mr Jonathan"
Peterborough City Council,Children's & Education Services - Children's Social Care,Support Services & Management Costs,Supplies and Services,21/12/2011,423064,700,REVENUE,HM Courts and Tribunals Service (HMCTS)
Peterborough City Council,Deficit/(Surplus) on Trading Undertakings,Trading Account Surpluses & Deficits,Supplies and Services,21/12/2011,423182,606,REVENUE,Perkins Engines Co Ltd
Peterborough City Council,Planning Services,Community Development,Supplies and Services,21/12/2011,423341,500,REVENUE,Oundle Road Baptist Church
Peterborough City Council,Housing Services,Homelessness,Supplies and Services,21/12/2011,423359,652.8,REVENUE,DA Rosalia Hotel
Peterborough City Council,Housing Services,Homelessness,Supplies and Services,21/12/2011,423363,571.2,REVENUE,DA Rosalia Hotel
Peterborough City Council,Housing Services,Homelessness,Supplies and Services,21/12/2011,423368,1010.7,REVENUE,DA Rosalia Hotel
Peterborough City Council,Planning Services,Community Development,Supplies and Services,21/12/2011,423373,1000,REVENUE,Copeland Social Club
Peterborough City Council,Children's & Education Services - Education,Non-School Funding,Supplies and Services,21/12/2011,423396,677.6,REVENUE,Redacted Personal Data
Peterborough City Council,Children's & Education Services - Children's Social Care,Children Looked After,Supplies and Services - Transfer Payments,21/12/2011,423406,19092.85,REVENUE,Oracle Care Ltd (Region 2)
Peterborough City Council,Children's & Education Services - Children's Social Care,Children Looked After,Supplies and Services - Transfer Payments,21/12/2011,423407,20153.57,REVENUE,Oracle Care Ltd (Region 2)
Peterborough City Council,Children's & Education Services - Children's Social Care,Children Looked After,Supplies and Services - Transfer Payments,21/12/2011,423408,11750,REVENUE,Oracle Care Ltd (Region 2)
Peterborough City Council,Children's & Education Services - Children's Social Care,Children Looked After,Supplies and Services - Transfer Payments,21/12/2011,423410,11750,REVENUE,Oracle Care Ltd (Region 2)
Peterborough City Council,Children's & Education Services - Children's Social Care,Support Services & Management Costs,Supplies and Services,21/12/2011,423414,591.6,REVENUE,Psychology Clinic of East Anglia
Peterborough City Council,Children's & Education Services - Children's Social Care,Children Looked After,Supplies and Services - Transfer Payments,21/12/2011,423417,3454.33,REVENUE,Synergy Fostering Ltd
Peterborough City Council,Cultural and Related Services,Waste Collection,Supplies and Services,21/12/2011,423436,648.41,REVENUE,Kingsway Tyres (Stamford) Ltd
Peterborough City Council,Children's & Education Services - Children's Social Care,Children Looked After,Supplies and Services - Transfer Payments,21/12/2011,423483,3342.9,REVENUE,Synergy Fostering Ltd
Peterborough City Council,Children's & Education Services - Children's Social Care,Children Looked After,Employees,21/12/2011,423485,1209.9,REVENUE,Frontline Staffing Ltd
Peterborough City Council,Children's & Education Services - Children's Social Care,Children Looked After,Employees,21/12/2011,423488,1043.4,REVENUE,Frontline Staffing Ltd
Peterborough City Council,Planning Services,Community Development,Supplies and Services,21/12/2011,423642,500,REVENUE,Netherton Friendship Club
Peterborough City Council,Planning Services,Community Development,Supplies and Services,21/12/2011,423659,1137.6,REVENUE,H E Donnor
Peterborough City Council,Deficit/(Surplus) on Trading Undertakings,Trading Account Surpluses & Deficits,Supplies and Services,21/12/2011,423676,1125.12,REVENUE,Barron Clark Castings Ltd
Peterborough City Council,Housing Services,Homelessness,Supplies and Services,21/12/2011,423728,746,REVENUE,Restover Lodge Hotel
Peterborough City Council,Cultural and Related Services,Recreation & Sport,Supplies and Services,21/12/2011,423737,504,REVENUE,FMG Consulting
Peterborough City Council,Children's & Education Services - Children's Social Care,Children Looked After,Premises,21/12/2011,423938,2006.24,REVENUE,The K A Wing Group Ltd
Peterborough City Council,Housing Services,Homelessness,Supplies and Services,21/12/2011,424053,1173,REVENUE,Restover Lodge Hotel
Peterborough City Council,Housing Services,Homelessness,Supplies and Services,21/12/2011,424059,613.5,REVENUE,Restover Lodge Hotel
Peterborough City Council,Housing Services,Homelessness,Supplies and Services,21/12/2011,424101,559.5,REVENUE,Restover Lodge Hotel
Peterborough City Council,Children's & Education Services - Education,Non-School Funding,Supplies and Services,21/12/2011,424574,2462,REVENUE,Dogsthorpe Community Pre-School
Peterborough City Council,Children's & Education Services - Education,Non-School Funding,Supplies and Services,21/12/2011,424575,3509.64,REVENUE,Little Poppets Day Nursery
Peterborough City Council,Children's & Education Services - Education,Non-School Funding,Supplies and Services,21/12/2011,424576,1538.75,REVENUE,East Community Playgroup
Peterborough City Council,Children's & Education Services - Education,Non-School Funding,Supplies and Services,21/12/2011,424577,3385.25,REVENUE,Husaini Pre-School
Peterborough City Council,Children's & Education Services - Education,Non-School Funding,Supplies and Services,21/12/2011,424578,4616.25,REVENUE,East Community Playgroup
Peterborough City Council,Children's & Education Services - Education,Non-School Funding,Supplies and Services,21/12/2011,424579,1231,REVENUE,Husaini Pre-School
Peterborough City Council,Children's & Education Services - Education,Non-School Funding,Supplies and Services,21/12/2011,424580,3580.75,REVENUE,Kindercare Pre-School Ltd
Peterborough City Council,Children's & Education Services - Education,Non-School Funding,Supplies and Services,21/12/2011,424581,21484.5,REVENUE,Kindercare Pre-School Ltd
Peterborough City Council,Children's & Education Services - Education,Non-School Funding,Supplies and Services,21/12/2011,424582,1541.25,REVENUE,Brookside Playgroup
Peterborough City Council,Children's & Education Services - Education,Non-School Funding,Supplies and Services,21/12/2011,424583,4806.9,REVENUE,Birchtree Pre-School
Peterborough City Council,Children's & Education Services - Education,Non-School Funding,Supplies and Services,21/12/2011,424584,5664.1,REVENUE,Dogsthorpe Community Pre-School
Peterborough City Council,Children's & Education Services - Education,Non-School Funding,Supplies and Services,21/12/2011,424585,7337.45,REVENUE,Brookside Playgroup
Peterborough City Council,Children's & Education Services - Education,Non-School Funding,Supplies and Services,21/12/2011,424586,1935.11,REVENUE,Carousel Day Nursery
Peterborough City Council,Children's & Education Services - Education,Non-School Funding,Supplies and Services,21/12/2011,424587,7235.12,REVENUE,Carousel Day Nursery
Peterborough City Council,Children's & Education Services - Education,Non-School Funding,Supplies and Services,21/12/2011,424588,742.55,REVENUE,Redacted Personal Data
Peterborough City Council,Children's & Education Services - Education,Non-School Funding,Supplies and Services,21/12/2011,424589,14156.5,REVENUE,Beeches Pre-School
Peterborough City Council,Children's & Education Services - Education,Non-School Funding,Supplies and Services,21/12/2011,424590,1538.75,REVENUE,Leighton Primary Pre-School
Peterborough City Council,Children's & Education Services - Education,Non-School Funding,Supplies and Services,21/12/2011,424591,2154.25,REVENUE,Beeches Pre-School
Peterborough City Council,Children's & Education Services - Education,Non-School Funding,Supplies and Services,21/12/2011,424592,6155,REVENUE,Leighton Primary Pre-School
Peterborough City Council,Children's & Education Services - Education,Non-School Funding,Supplies and Services,21/12/2011,424593,7950.45,REVENUE,Eye Pre-School
Peterborough City Council,Children's & Education Services - Education,Non-School Funding,Supplies and Services,21/12/2011,424594,4801.9,REVENUE,Eye Pre-School
Peterborough City Council,Children's & Education Services - Education,Non-School Funding,Supplies and Services,21/12/2011,424595,1790.38,REVENUE,Bundles of Fun Day Nursery
Peterborough City Council,Children's & Education Services - Education,Non-School Funding,Supplies and Services,21/12/2011,424596,2769.75,REVENUE,Birchtree Pre-School
Peterborough City Council,Children's & Education Services - Education,Non-School Funding,Supplies and Services,21/12/2011,424597,27580.4,REVENUE,Herlington Pre-School
Peterborough City Council,Children's & Education Services - Education,Non-School Funding,Supplies and Services,21/12/2011,424601,2217.8,REVENUE,PSLA
Peterborough City Council,Children's & Education Services - Education,Non-School Funding,Supplies and Services,21/12/2011,424613,10590.6,REVENUE,Herlington Pre-School
Peterborough City Council,Children's & Education Services - Education,Non-School Funding,Supplies and Services,21/12/2011,424618,6232.01,REVENUE,Alpha Big Sky Ltd
Peterborough City Council,Children's & Education Services - Education,Non-School Funding,Supplies and Services,21/12/2011,424620,4512.75,REVENUE,Bright Kids Nursery Ltd (Lynchwood)
Peterborough City Council,Children's & Education Services - Education,Non-School Funding,Supplies and Services,21/12/2011,424621,8240.73,REVENUE,Bright Kids Nursery Ltd (Lynchwood)
Peterborough City Council,Children's & Education Services - Education,Non-School Funding,Supplies and Services,21/12/2011,424623,4225.79,REVENUE,Leapfrog Day Nurseries
Peterborough City Council,Children's & Education Services - Education,Non-School Funding,Supplies and Services,21/12/2011,424625,3570.9,REVENUE,Bretton Community Pre-School
Peterborough City Council,Children's & Education Services - Education,Non-School Funding,Supplies and Services,21/12/2011,424626,18487.67,REVENUE,Leapfrog Day Nurseries
Peterborough City Council,Children's & Education Services - Education,Non-School Funding,Supplies and Services,21/12/2011,424627,15695.25,REVENUE,Bretton Community Pre-School
Peterborough City Council,Children's & Education Services - Education,Non-School Funding,Supplies and Services,21/12/2011,424628,3693,REVENUE,Little Angels
Peterborough City Council,Children's & Education Services - Education,Non-School Funding,Supplies and Services,21/12/2011,424629,1231,REVENUE,Little Angels
Peterborough City Council,Children's & Education Services - Education,Non-School Funding,Supplies and Services,21/12/2011,424631,4296.9,REVENUE,Anna-Ca-Soo Day Nursery
Peterborough City Council,Children's & Education Services - Education,Non-School Funding,Supplies and Services,21/12/2011,424633,3654.37,REVENUE,Bundles of Fun Day Nursery
Peterborough City Council,Children's & Education Services - Education,Non-School Funding,Supplies and Services,21/12/2011,424636,1050.35,REVENUE,Glinton Pre-School Playgroup
Peterborough City Council,Children's & Education Services - Education,Non-School Funding,Supplies and Services,21/12/2011,424637,3077.5,REVENUE,Glinton Pre-School Playgroup
Peterborough City Council,Children's & Education Services - Education,Non-School Funding,Supplies and Services,21/12/2011,424638,1525.1,REVENUE,Redacted Personal Data
Peterborough City Council,Children's & Education Services - Education,Non-School Funding,Supplies and Services,21/12/2011,424640,8065.05,REVENUE,PSLA
Peterborough City Council,Children's & Education Services - Education,Non-School Funding,Supplies and Services,21/12/2011,424641,13964.93,REVENUE,Anna-Ca-Soo Day Nursery
Peterborough City Council,Children's & Education Services - Education,Non-School Funding,Supplies and Services,21/12/2011,424642,1231,REVENUE,Happy Days Playgroup
Peterborough City Council,Children's & Education Services - Education,Non-School Funding,Supplies and Services,21/12/2011,424644,4616.25,REVENUE,Happy Days Playgroup
Peterborough City Council,Children's & Education Services - Education,Non-School Funding,Supplies and Services,21/12/2011,424646,2769.75,REVENUE,Fulbridge Nursery LIttle Gems
Peterborough City Council,Children's & Education Services - Education,Non-School Funding,Supplies and Services,21/12/2011,424648,5312.8,REVENUE,Family Action
Peterborough City Council,Children's & Education Services - Education,Non-School Funding,Supplies and Services,21/12/2011,424650,14543.85,REVENUE,Alpha Big Sky Ltd
Peterborough City Council,Children's & Education Services - Education,Non-School Funding,Supplies and Services,21/12/2011,424652,6666.2,REVENUE,Kiddi Caru Day Nursery
Peterborough City Council,Planning Services,Community Development,Supplies and Services,21/12/2011,424664,8000,REVENUE,The Riverside Pavilion
Peterborough City Council,Children's & Education Services - Education,Non-School Funding,Supplies and Services,21/12/2011,424684,1361.19,REVENUE,Little Poppets Day Nursery
Peterborough City Council,Children's & Education Services - Education,Non-School Funding,Supplies and Services,21/12/2011,424685,1790.38,REVENUE,Shining Stars Pre-School Nursery
Peterborough City Council,Children's & Education Services - Education,Non-School Funding,Supplies and Services,21/12/2011,424686,10026.1,REVENUE,Shining Stars Pre-School Nursery
Peterborough City Council,Children's & Education Services - Education,Non-School Funding,Supplies and Services,21/12/2011,424687,9125.4,REVENUE,Southfields Nursery
Peterborough City Council,Children's & Education Services - Education,Non-School Funding,Supplies and Services,21/12/2011,424692,7396,REVENUE,Parnwell Family Project Playgroup
Peterborough City Council,Children's & Education Services - Education,Non-School Funding,Supplies and Services,21/12/2011,424693,2833.3,REVENUE,Parnwell Family Project Playgroup
Peterborough City Council,Children's & Education Services - Education,Non-School Funding,Supplies and Services,21/12/2011,424695,5847.25,REVENUE,Shiny Stars Pre-School
Peterborough City Council,Children's & Education Services - Education,Non-School Funding,Supplies and Services,21/12/2011,424697,923.25,REVENUE,Little Steps Day Nursery
Peterborough City Council,Children's & Education Services - Education,Non-School Funding,Supplies and Services,21/12/2011,424701,9071.85,REVENUE,Little Steps Day Nursery
Peterborough City Council,Children's & Education Services - Education,Non-School Funding,Supplies and Services,21/12/2011,424705,1856.38,REVENUE,Redacted Personal Data
